Workbook

Sheet 1. Info
AB1: Algoma Power Inc.
AB2: Atikokan Hydro Inc.
AB3: Attawapiskat Power Corp.
AB4: Bluewater Power Distribution Corporation
AB5: Brant County Power Inc.
AB6: Brantford Power Inc.
AB7: Burlington Hydro Inc.
AB8: Cambridge and North Dumfries Hydro Inc.
AB9: Canadian Niagara Power Inc.
AB10: Centre Wellington Hydro Ltd.
AB11: Chapleau Public Utilities Corporation
F12: Version | G12: 3 | AB12: Clinton Power Corporation
AB13: COLLUS Power Corporation
C14: Utility Name | D14: Oshawa PUC Networks Inc. | AB14: Cooperative Hydro Embrun Inc.
AB15: E.L.K. Energy Inc.
C16: Assigned EB Number | D16: EB-2014-0101 | AB16: Enersource Hydro Mississauga Inc.
AB17: Entegrus Powerlines Inc.
C18: Name and Title | D18: David Savage, Corporate Controller | AB18: ENWIN Utilities Ltd.
AB19: Erie Thames Powerlines Corporation
C20: Phone Number | D20: 905 743-5219 | AB20: Espanola Regional Hydro Distribution Corporation
AB21: Essex Powerlines Corporation
C22: Email Address | D22: dsavage@opuc.on.ca | AB22: Festival Hydro Inc.
AB23: Fort Albany Power Corporation
C24: Date | AB24: Fort Frances Power Corporation
AB25: Greater Sudbury Hydro Inc.
C26: Last COS Re-based Year | D26: 2012 | AB26: Grimsby Power Inc.
AB27: Guelph Hydro Electric Systems Inc.
AB28: Haldimand County Hydro Inc.
A29: Note: Drop-down lists are shaded blue; Input cells are shaded green. | AB29: Halton Hills Hydro Inc.
AB30: Hearst Power Distribution Company Limited
AB31: Horizon Utilities Corporation
AB32: Hydro 2000 Inc.
AB33: Hydro Hawkesbury Inc.
AB34: Hydro One Brampton Networks Inc.
AB35: Hydro One Networks Inc
AB36: Hydro Ottawa Limited
AB37: Innisfil Hydro Distribution Systems Limited
AB38: Kashechewan Power Corporation
AB39: Kenora Hydro Electric Corporation Ltd.
AB40: Kingston Hydro Corporation
AB41: Kitchener-Wilmot Hydro Inc.
AB42: Lakefront Utilities Inc.
AB43: Lakeland Power Distribution Ltd.
AB44: London Hydro Inc.
AB45: Midland Power Utility Corporation
AB46: Milton Hydro Distribution inc.
AB47: Newmarket - Tay Power Distribution Ltd.
AB48: Niagara Peninsula Energy Inc.
AB49: Niagara-on-the-Lake Hydro Inc.
AB50: Norfolk Power Distribution Inc.
AB51: North Bay Hydro Distribution Limited
AB52: Northern Ontario Wires Inc.
AB53: Oakville Hydro Electricity Distribution Inc.
AB54: Orangeville Hydro Limited
AB55: Orillia Power Distribution Corporation
AB56: Oshawa PUC Networks Inc.
AB57: Ottawa River Power Corporation
AB58: Parry Sound Power Corporation
AB59: Peterborough Distribution Incorporated
AB60: PowerStream Inc.
AB61: PUC Distribution Inc.
AB62: Renfrew Hydro Inc.
AB63: Rideau St. Lawrence Distribution Inc.
AB64: Sioux Lookout Hydro Inc.
AB65: St. Thomas Energy Inc.
AB66: Thunder Bay Hydro Electricity Distribution Inc.
AB67: Tillsonburg Hydro Inc.
AB68: Toronto Hydro-Electric System Limited
AB69: Veridian Connections Inc.
AB70: Wasaga Distribution Inc.
AB71: Waterloo North Hydro Inc.
AB72: Welland Hydro-Electric System Corp.
AB73: Wellington North Power Inc.
AB74: West Coast Huron Energy Inc.
AB75: West Perth Power Inc.
AB76: Westario Power Inc.
AB77: Whitby Hydro Electric Corporation
AB78: Woodstock Hydro Services Inc.

Sheet Table of Contents
AA1: 1
AA2: 2012
AA3: 2013
AA4: 2014
AA5: 2015
AA6: 2016
C17: 1. Info | E17: K. Sch 13 Tax Reserves Bridge
C18: A. Data Input Sheet | E18: L. Sch 7-1 Loss Cfwd Bridge
C19: B. Tax Rates & Exemptions | E19: M. Adj. Taxable Income Bridge
C20: C. Sch 8 Hist | E20: N. PILs,Tax Provision Bridge
C21: D. Schedule 10 CEC Hist | E21: O. Schedule 8 CCA Test Year
C22: E. Sch 13 Tax Reserves Hist | E22: P. Schedule 10 CEC Test Year
C23: F. Sch 7-1 Loss Cfwd Hist | E23: Q Sch 13 Tax Reserve Test Year
C24: G. Adj. Taxable Income Historical | E24: R. Sch 7-1 Loss Cfwd
C25: H. PILs,Tax Provision Historical | E25: S. Taxable Income Test Year
C26: I. Schedule 8 CCA Bridge Year | E26: T. PILs,Tax Provision
C27: J. Schedule 10 CEC Bridge Year

Sheet A. Data Input Sheet
C9: Rate Base | G9: =Sheet1!F5 -> 119890558.3
C11: Return on Ratebase
C12: Deemed ShortTerm Debt % | E12: =Sheet1!F8 -> 0.04 | F12: T | G12: =G9*E12 -> 4795622.332 | H12: W = S * T
C13: Deemed Long Term Debt % | E13: =Sheet1!F9 -> 0.56 | F13: U | G13: =G9*E13 -> 67138712.65 | H13: X = S * U
C14: Deemed Equity % | E14: =Sheet1!F10 -> 0.4 | F14: V | G14: =G9*E14 -> 47956223.32 | H14: Y = S * V
C16: Short Term Interest Rate | E16: =Sheet1!F12 -> 0.0216 | F16: Z | G16: =G12*E16 -> 103585.4424 | H16: AC = W * Z
C17: Long Term Interest | E17: =Sheet1!F13 -> 0.04601273901 | F17: AA | G17: =G13*E17 -> 3089236.063 | H17: AD = X * AA
C18: Return on Equity (Regulatory Income) | E18: =Sheet1!F14 -> 0.093 | F18: AB | G18: =G14*E18 -> 4459928.769 | H18: AE = Y * AB
C19: Return on Rate Base | G19: =SUM(G16:G18) -> 7652750.274 | H19: AF = AC + AD + AE
C24: Questions that must be answered | G24: Historical | H24: Bridge | I24: Test Year
C26: 1. Does the applicant have any Investment Tax Credits (ITC)? | G26: Yes | H26: Yes | I26: Yes
C28: 2. Does the applicant have any SRED Expenditures? | G28: Yes | H28: No | I28: No
C30: 3. Does the applicant have any Capital Gains or Losses for tax purposes? | G30: No | H30: No | I30: No
C32: 4. Does the applicant have any Capital Leases? | G32: No | H32: No | I32: No
C34: 5. Does the applicant have any Loss Carry-Forwards (non-capital or net capital)? | G34: No | H34: No | I34: No
C36: 6. Since 1999, has the applicant acquired another regulated applicant's assets? | G36: No | H36: No | I36: No
C38: 7. Did the applicant pay dividends? | G38: Yes | H38: Yes | I38: Yes
C39: If Yes, please describe what was the tax treatment in the manager's summary.
C41: 8. Did the applicant elect to capitalize interest incurred on CWIP for tax purposes? | G41: Yes | H41: Yes | I41: Yes

Sheet B. Tax Rates & Exemptions
C9: Tax Rates
C10: Federal & Provincial | E10: Effective | F10: Effective | G10: Effective | H10: Effective | I10: Effective
C11: As of June 20, 2012 | E11: 2011-01-01 | F11: 2012-01-01 | G11: 2013-01-01 | H11: 2014-01-01 | I11: 2015-01-01
C13: Federal income tax
C14: General corporate rate | E14: 0.38 | F14: 0.38 | G14: 0.38 | H14: 0.38 | I14: 0.38
C15: Federal tax abatement | E15: -0.1 | F15: -0.1 | G15: -0.1 | H15: -0.1 | I15: -0.1
C16: Adjusted federal rate | E16: =SUM(E14:E15) -> 0.28 | F16: =SUM(F14:F15) -> 0.28 | G16: =SUM(G14:G15) -> 0.28 | H16: =SUM(H14:H15) -> 0.28 | I16: =SUM(I14:I15) -> 0.28
C18: Rate reduction | E18: -0.115 | F18: -0.13 | G18: -0.13 | H18: -0.13 | I18: -0.13
E19: =E16+E18 -> 0.165 | F19: =F16+F18 -> 0.15 | G19: =G16+G18 -> 0.15 | H19: =H16+H18 -> 0.15 | I19: =I16+I18 -> 0.15
C21: Ontario income tax | E21: =0.12*0.5+0.115*0.5 -> 0.1175 | F21: 0.115 | G21: 0.115 | H21: 0.115 | I21: 0.115
C23: Combined federal and Ontario | E23: =E19+E21 -> 0.2825 | F23: =F19+F21 -> 0.265 | G23: =G19+G21 -> 0.265 | H23: =H19+H21 -> 0.265 | I23: =I19+I21 -> 0.265
C25: Federal & Ontario Small Business
C26: Federal small business threshold | E26: 500000 | F26: 500000 | G26: 500000 | H26: 500000 | I26: 500000
C27: Ontario Small Business Threshold | E27: 500000 | F27: 500000 | G27: 500000 | H27: 500000 | I27: 500000
C29: Federal small business rate | E29: 0.11 | F29: 0.11 | G29: 0.11 | H29: 0.11 | I29: 0.11
C31: Ontario small business rate | E31: 0.045 | F31: 0.045 | G31: 0.045 | H31: 0.045 | I31: 0.045

Sheet C. Sch 8 Hist
C6: Schedule 8 - Historical Year
C11: Class | D11: Class Description | E11: UCC End of Year Historical per tax returns | F11: Less: Non-Distribution Portion | G11: UCC Regulated Historical Year
C12: 1 | D12: Distribution System - post 1987 | E12: =Sheet1!D17 -> 35563813.34 | G12: =+E12-F12 -> 35563813.34
C13: 1 Enhanced | D13: Non-residential Buildings Reg. 1100(1)(a.1) election | E13: =Sheet1!D18 -> 0 | G13: =+E13-F13 -> 0
C14: 2 | D14: Distribution System - pre 1988 | E14: =Sheet1!D19 -> 0 | G14: =+E14-F14 -> 0
C15: 8 | D15: General Office/Stores Equip | E15: =Sheet1!D20 -> 848881.4848 | G15: 848881.4848
C16: 10 | D16: Computer Hardware/ Vehicles | E16: =Sheet1!D21 -> 1342231.562 | G16: 1342231.562
C17: 10.1 | D17: Certain Automobiles | E17: =Sheet1!D22 -> 6428.3345 | G17: 6428.3345
C18: 12 | D18: Computer Software | E18: =Sheet1!D23 -> 369782.4324 | G18: 369782.4324
C19: 13 1 | D19: Lease # 1 | E19: =Sheet1!D24 -> 698679.1575 | G19: 698679.1575
C20: 13 2 | D20: Lease #2 | E20: =Sheet1!D25 -> 0 | G20: 0
C21: 13 3 | D21: Lease # 3 | E21: =Sheet1!D26 -> 0 | G21: 0
C22: 13 4 | D22: Lease # 4 | E22: =Sheet1!D27 -> 0 | G22: 0
C23: 14 | D23: Franchise | E23: =Sheet1!D28 -> 0 | G23: 0
C24: 17 | D24: New Electrical Generating Equipment Acq'd after Feb 27/00 Other Than Bldgs | E24: =Sheet1!D29 -> 0 | G24: 0
C25: 42 | D25: Fibre Optic Cable | E25: =Sheet1!D30 -> 20407.23948 | G25: =+E25-F25 -> 20407.23948
C26: 43.1 | D26: Certain Energy-Efficient Electrical Generating Equipment | E26: =Sheet1!D31 -> 0 | G26: 0
C27: 43.2 | D27: Certain Clean Energy Generation Equipment | E27: =Sheet1!D32 -> 0 | G27: 0
C28: 45 | D28: Computers & Systems Software acq'd post Mar 22/04 | E28: =Sheet1!D33 -> 1049.800878 | G28: 1049.800878
C29: 46 | D29: Data Network Infrastructure Equipment (acq'd post Mar 22/04) | E29: =Sheet1!D34 -> 0 | G29: 0
C30: 47 | D30: Distribution System - post February 2005 | E30: =Sheet1!D35 -> 59272872.45 | G30: 59272872.45
C31: 50 | D31: Data Network Infrastructure Equipment - post Mar 2007 | E31: =Sheet1!D36 -> 44289.11201 | G31: 44289.11201
C32: 52 | D32: Computer Hardware and system software | E32: =Sheet1!D37 -> 0 | G32: 0
C33: 95 | D33: CWIP | E33: =Sheet1!D38 -> 0 | G33: 0
E34: =Sheet1!D39 -> 0 | G34: 0
C35: 45.1 | D35: Computers-1921 | E35: =Sheet1!D40 -> 328.4589234 | G35: 328.4589234
G36: 0
G37: 0
G38: 0
G39: 0
G40: 0
G41: 0
G42: 0
G43: 0
D44: SUB-TOTAL - UCC | E44: =SUM(E12:E43) -> 98168763.37 | F44: =SUM(F12:F43) -> 0 | G44: =SUM(G12:G43) -> 98168763.37

Sheet D. Schedule 10 CEC Hist
C8: Schedule 10 CEC - Historical Year
C10: Cumulative Eligible Capital
C11: Additions
C12: Cost of Eligible Capital Property Acquired during Test Year
C14: Other Adjustments | G14: 0
C16: Subtotal | G16: =SUM(G12,G14) -> 0 | I16: x 3/4 = | J16: =3/4*G16 -> 0
C18: Non-taxable portion of a non-arm's length transferor's gain realized on the | G18: 0 | I18: x 1/2 = | J18: =IF((G18*0.5)<0, 0, G18*0.5) -> 0
C19: transfer of an ECP to the Corporation after Friday, December 20, 2002
J20: =IF((J16-J18)<0,0,J16-J18) -> 0 | K20: =J20 -> 0
C22: Amount transferred on amalgamation or wind-up of subsidiary | G22: 0 | K22: =G22 -> 0
F24: Subtotal | K24: =SUM(K10,K20,K22) -> 0
C26: Deductions
C28: Proceeds of sale (less outlays and expenses not otherwise deductible)
C29: from the disposition of all ECP during Test Year
C31: Other Adjustments | G31: 0
F33: Subtotal | G33: =SUM(G31,G28) -> 0 | I33: x 3/4 = | K33: =G33*3/4 -> 0
C36: Cumulative Eligible Capital Balance | K36: =K24-K33 -> 0
C38: Current Year Deduction | I38: =K36 -> 0 | J38: x 7% = | K38: =I38*0.07 -> 0
C40: Cumulative Eligible Capital - Closing Balance | K40: =K36-K38 -> 0

Sheet E. Sch 13 Tax Reserves Hist
C8: Schedule 13 Tax Reserves - Historical
C10: Continuity of Reserves
C13: Description | D13: Historical Balance as per tax returns | E13: Non-Distribution Eliminations | F13: Utility Only
C15: Capital Gains Reserves ss.40(1) | D15: =Sheet1!D46 -> 0 | F15: =D15-E15 -> 0
C16: Tax Reserves Not Deducted for accounting purposes
C17: Reserve for doubtful accounts ss. 20(1)(l) | D17: =Sheet1!D48 -> 0 | F17: =D17-E17 -> 0
C18: Reserve for goods and services not delivered ss. 20(1)(m) | D18: =Sheet1!D49 -> 0 | F18: 0
C19: Reserve for unpaid amounts ss. 20(1)(n) | D19: =Sheet1!D50 -> 0 | F19: 0
C20: Debt & Share Issue Expenses ss. 20(1)(e) | D20: =Sheet1!D51 -> 0 | F20: 0
C21: Other tax reserves | D21: =Sheet1!D52 -> 0 | F21: 0
F22: 0
F23: 0
F24: 0
F25: 0
F26: 0
C27: Total | D27: =SUM(D17:D26) -> 0 | E27: =SUM(E17:E26) -> 0 | F27: =SUM(F17:F26) -> 0
C29: Financial Statement Reserves (not deductible for Tax Purposes)
C30: General Reserve for Inventory Obsolescence (non-specific) | D30: =Sheet1!D58 -> 0 | F30: =D30-E30 -> 0
C31: General reserve for bad debts | D31: =Sheet1!D59 -> 220000 | F31: 220000
C32: Accrued Employee Future Benefits: | F32: 0
C33: - Medical and Life Insurance | D33: =Sheet1!D61 -> 11648800.08 | F33: 11648800.08
C34: -Short & Long-term Disability | F34: 0
C35: -Accmulated Sick Leave | D35: =Sheet1!D63 -> 0 | F35: 0
C36: - Termination Cost | D36: =Sheet1!D64 -> 0 | F36: 0
C37: - Other Post-Employment Benefits | D37: =Sheet1!D65 -> 0 | F37: 0
C38: Provision for Environmental Costs | D38: =Sheet1!D66 -> 0 | F38: 0
C39: Restructuring Costs | D39: =Sheet1!D67 -> 0 | F39: 0
C40: Accrued Contingent Litigation Costs | D40: =Sheet1!D68 -> 0 | F40: 0
C41: Accrued Self-Insurance Costs | D41: =Sheet1!D69 -> 0 | F41: 0
C42: Other Contingent Liabilities | D42: =Sheet1!D70 -> 0 | F42: 0
C43: Bonuses Accrued and Not Paid Within 180 Days of Year-End ss. 78(4) | D43: =Sheet1!D71 -> 0 | F43: 0
C44: Unpaid Amounts to Related Person and Not Paid Within 3 Taxation Years ss. 78(1) | D44: =Sheet1!D72 -> 0 | F44: 0
C45: Other | D45: =Sheet1!D73 -> 0 | F45: 0
F49: 0
F50: 0
C51: Total | D51: =SUM(D30:D50) -> 11868800.08 | E51: =SUM(E30:E50) -> 0 | F51: =SUM(F30:F50) -> 11868800.08

Sheet F. Sch 7-1 Loss Cfwd Hist
C9: Schedule 7-1 Loss Carry Forward - Historical
C11: Corporation Loss Continuity and Application
C13: Non-Capital Loss Carry Forward Deduction | F13: Total | G13: Non-Distribution Portion | H13: Utility Balance
C14: Actual Historical | H14: =F14-G14 -> 0
C16: Net Capital Loss Carry Forward Deduction | F16: Total | G16: Non-Distribution Portion | H16: Utility Balance
C17: Actual Historical | H17: =F17-G17 -> 0

Sheet G. Adj. Taxable Income Historic
C8: Adjusted Taxable Income - Historical Year
D11: T2S1 line # | E11: Total for Legal Entity | F11: Non-Distribution Eliminations | G11: Historic Wires Only
C12: Income before PILs/Taxes | D12: A | E12: =Sheet1!D80 -> 3905649.388 | G12: =+E12-F12 -> 3905649.388
C13: Additions:
C14: Interest and penalties on taxes | D14: 103 | E14: =Sheet1!D82 -> 0 | G14: =+E14-F14 -> 0
C15: Amortization of tangible assets | D15: 104 | E15: =Sheet1!D83 -> 4491587.548 | G15: 4491587.548
C16: Amortization of intangible assets | D16: 106 | E16: =Sheet1!D84 -> 0 | G16: 0
C17: Recapture of capital cost allowance from Schedule 8 | D17: 107 | E17: =Sheet1!D85 -> 0 | G17: 0
C18: Gain on sale of eligible capital property from Schedule 10 | D18: 108 | E18: =Sheet1!D86 -> 0 | G18: 0
C19: Income or loss for tax purposes- joint ventures or partnerships | D19: 109 | E19: =Sheet1!D87 -> 0 | G19: 0
C20: Loss in equity of subsidiaries and affiliates | D20: 110 | E20: =Sheet1!D88 -> 0 | G20: 0
C21: Loss on disposal of assets | D21: 111 | E21: =Sheet1!D89 -> 396446.4819 | G21: 396446.4819
C22: Charitable donations | D22: 112 | E22: =Sheet1!D90 -> 9800 | G22: 9800
C23: Taxable Capital Gains | D23: 113 | E23: =Sheet1!D91 -> 0 | G23: 0
C24: Political Donations | D24: 114 | E24: =Sheet1!D92 -> 0 | G24: 0
C25: Deferred and prepaid expenses | D25: 116 | E25: =Sheet1!D93 -> 0 | G25: 0
C26: Scientific research expenditures deducted on financial statements | D26: 118 | E26: =Sheet1!D94 -> 0 | G26: 0
C27: Capitalized interest | D27: 119 | E27: =Sheet1!D95 -> 0 | G27: 0
C28: Non-deductible club dues and fees | D28: 120 | E28: =Sheet1!D96 -> 13344 | G28: 13344
C29: Non-deductible meals and entertainment expense | D29: 121 | E29: =Sheet1!D97 -> 0 | G29: 0
C30: Non-deductible automobile expenses | D30: 122 | E30: =Sheet1!D98 -> 0 | G30: 0
C31: Non-deductible life insurance premiums | D31: 123 | E31: =Sheet1!D99 -> 0 | G31: 0
C32: Non-deductible company pension plans | D32: 124 | E32: =Sheet1!D100 -> 0 | G32: 0
C33: Tax reserves deducted in prior year | D33: 125 | E33: =Sheet1!D101 -> 0 | G33: 0
C34: Reserves from financial statements- balance at end of year | D34: 126 | E34: =Sheet1!D102 -> 11868800.08 | G34: 11868800.08
C35: Soft costs on construction and renovation of buildings | D35: 127 | E35: =Sheet1!D103 -> 0 | G35: 0
C36: Book loss on joint ventures or partnerships | D36: 205 | E36: =Sheet1!D104 -> 0 | G36: 0
C37: Capital items expensed | D37: 206 | E37: =Sheet1!D105 -> 0 | G37: 0
C38: Debt issue expense | D38: 208 | E38: =Sheet1!D106 -> 0 | G38: 0
C39: Development expenses claimed in current year | D39: 212 | E39: =Sheet1!D107 -> 0 | G39: 0
C40: Financing fees deducted in books | D40: 216 | E40: =Sheet1!D108 -> 0 | G40: 0
C41: Gain on settlement of debt | D41: 220 | E41: =Sheet1!D109 -> 0 | G41: 0
C42: Non-deductible advertising | D42: 226 | E42: =Sheet1!D110 -> 0 | G42: 0
C43: Non-deductible interest | D43: 227 | E43: =Sheet1!D111 -> 0 | G43: 0
C44: Non-deductible legal and accounting fees | D44: 228 | E44: =Sheet1!D112 -> 0 | G44: 0
C45: Recapture of SR&ED expenditures | D45: 231 | E45: =Sheet1!D113 -> 0 | G45: 0
C46: Share issue expense | D46: 235 | E46: =Sheet1!D114 -> 0 | G46: 0
C47: Write down of capital property | D47: 236 | E47: =Sheet1!D115 -> 0 | G47: 0
C48: Amounts received in respect of qualifying environment trust per paragraphs 12(1)(z.1) and 12(1)(z.2) | D48: 237 | E48: =Sheet1!D116 -> 0 | G48: 0
C49: Other Additions
C50: Interest Expensed on Capital Leases | D50: 290 | E50: =Sheet1!D118 -> 0 | G50: 0
C51: Realized Income from Deferred Credit Accounts | D51: 291 | E51: =Sheet1!D119 -> 0 | G51: 0
C52: Pensions | D52: 292 | E52: =Sheet1!D120 -> 0 | G52: 0
C53: Non-deductible penalties | D53: 293 | E53: =Sheet1!D121 -> 0 | G53: 0
D54: 294 | E54: =Sheet1!D122 -> 5000 | G54: 5000
D55: 295 | E55: =Sheet1!D123 -> 0 | G55: =+E55-F55 -> 0
C56: ARO Accretion expense | E56: =Sheet1!D124 -> 0 | G56: 0
C57: Capital Contributions Received (ITA 12(1)(x)) | E57: =Sheet1!D125 -> 0 | G57: 0
C58: Lease Inducements Received (ITA 12(1)(x)) | E58: =Sheet1!D126 -> 0 | G58: 0
C59: Deferred Revenue (ITA 12(1)(a)) | E59: =Sheet1!D127 -> 0 | G59: 0
C60: Prior Year Investment Tax Credits received | E60: =Sheet1!D128 -> 0 | G60: 0
C61: Inducements (ITA 12(1)(x)) | E61: =Sheet1!D129 -> 0 | G61: 0
C62: Amortization of MIFRS PP&E Deferral Account | E62: =Sheet1!D130 -> -595125 | G62: -595125
G63: 0
G64: 0
G65: 0
G66: 0
G67: 0
G68: 0
G69: 0
G70: 0
C71: Total Additions | E71: =SUM(E13:E70) -> 16189853.11 | F71: =SUM(F13:F70) -> 0 | G71: =SUM(G13:G70) -> 16189853.11
C73: Deductions:
C74: Gain on disposal of assets per financial statements | D74: 401 | E74: =Sheet1!D136 -> 0 | G74: =+E74-F74 -> 0
C75: Dividends not taxable under section 83 | D75: 402 | E75: =Sheet1!D137 -> 0 | G75: 0
C76: Capital cost allowance from Schedule 8 | D76: 403 | E76: =Sheet1!D138 -> 7424149.415 | G76: 7424149.415
C77: Terminal loss from Schedule 8 | D77: 404 | E77: =Sheet1!D139 -> 0 | G77: 0
C78: Cumulative eligible capital deduction from Schedule 10 | D78: 405 | E78: =Sheet1!D140 -> 0 | G78: 0
C79: Allowable business investment loss | D79: 406 | E79: =Sheet1!D141 -> 0 | G79: 0
C80: Deferred and prepaid expenses | D80: 409 | E80: =Sheet1!D142 -> 0 | G80: 0
C81: Scientific research expenses claimed in year | D81: 411 | E81: =Sheet1!D143 -> 0 | G81: 0
C82: Tax reserves claimed in current year | D82: 413 | E82: =Sheet1!D144 -> 11868800.08 | G82: 11868800.08
C83: Reserves from financial statements - balance at beginning of year | D83: 414 | E83: =Sheet1!D145 -> 0 | G83: 0
C84: Contributions to deferred income plans | D84: 416 | E84: =Sheet1!D146 -> 0 | G84: 0
C85: Book income of joint venture or partnership | D85: 305 | E85: =Sheet1!D147 -> 0 | G85: 0
C86: Equity in income from subsidiary or affiliates | D86: 306 | E86: =Sheet1!D148 -> 0 | G86: 0
C87: Other deductions: (Please explain in detail the nature of the item) | E87: =Sheet1!D149 -> 0
C89: Interest capitalized for accounting deducted for tax | D89: 390 | E89: =Sheet1!D151 -> 73333.33333 | G89: 73333.33333
C90: Capital Lease Payments | D90: 391 | E90: =Sheet1!D152 -> 0 | G90: 0
C91: Non-taxable imputed interest income on deferral and variance accounts | D91: 392 | E91: =Sheet1!D153 -> 0 | G91: 0
D92: 393 | E92: =Sheet1!D154 -> 0 | G92: 0
D93: 394 | E93: =Sheet1!D155 -> 0 | G93: 0
C94: ARO Payments - Deductible for Tax when Paid | E94: =Sheet1!D156 -> 0 | G94: 0
C95: ITA 13(7.4) Election - Capital Contributions Received | E95: =Sheet1!D157 -> 0 | G95: 0
C96: ITA 13(7.4) Election - Apply Lease Inducement to cost of Leaseholds | E96: =Sheet1!D158 -> 0 | G96: 0
C97: Deferred Revenue - ITA 20(1)(m) reserve | E97: =Sheet1!D159 -> 0 | G97: 0
C98: Principal portion of lease payments | E98: =Sheet1!D160 -> 0 | G98: 0
C99: Lease Inducement Book Amortization credit to income | E99: =Sheet1!D161 -> 0 | G99: 0
C100: Financing fees for tax ITA 20(1)(e) and (e.1) | E100: =Sheet1!D162 -> 0 | G100: 0
G101: 0
G102: 0
G103: 0
G104: 0
G105: 0
G106: 0
G107: 0
C109: Total Deductions | E109: =SUM(E74:E108) -> 19366282.83 | F109: =SUM(F74:F108) -> 0 | G109: =SUM(G74:G108) -> 19366282.83
C111: Net Income for Tax Purposes | E111: =+E12+E71-E109 -> 729219.6689 | F111: =+F12+F71-F109 -> 0 | G111: =+G12+G71-G109 -> 729219.6689
C113: Charitable donations from Schedule 2 | D113: 311 | E113: =Sheet1!D175 -> 0 | G113: =+E113-F113 -> 0
C114: Taxable dividends deductible under section 112 or 113, from Schedule 3 (item 82) | D114: 320 | E114: =Sheet1!D176 -> 0 | G114: =+E114-F114 -> 0
C115: Non-capital losses of preceding taxation years from Schedule 4 | D115: 331 | E115: =Sheet1!D177 -> 0 | G115: =+E115-F115 -> 0
C116: Net-capital losses of preceding taxation years from Schedule 4 (Please include explanation and calculation in Manager's summary) | D116: 332 | E116: =Sheet1!D178 -> 0 | G116: =+E116-F116 -> 0
C117: Limited partnership losses of preceding taxation years from Schedule 4 | D117: 335 | E117: =Sheet1!D179 -> 0 | G117: =+E117-F117 -> 0
C119: TAXABLE INCOME | E119: =+E111-SUM(E113:E117) -> 729219.6689 | F119: =+F111-SUM(F113:F117) -> 0 | G119: =+G111-SUM(G113:G117) -> 729219.6689

Sheet H. PILs,Tax Provision Historic
C6: PILs Tax Provision - Historical Year
C8: Note: Input the actual information from the tax returns for the historical year. | I8: Wires Only
C10: Regulatory Taxable Income | I10: ='G. Adj. Taxable Income Historic'!G119 -> 729219.6689 | J10: A
C12: Ontario Income Taxes
C13: Income tax payable | D13: Ontario Income Tax | E13: 0.115 | F13: B | G13: =I10*E13 -> 83860.26193 | H13: C = A * B
C15: Small business credit | D15: Ontario Small Business Threshold | E15: =IF(I10>'B. Tax Rates & Exemptions'!F27,'B. Tax Rates & Exemptions'!F27,0) -> 500000 | F15: D
D16: Rate reduction (negative) | E16: -0.07 | F16: E | G16: =E15*E16 -> -35000 | H16: F = D * E
C20: Ontario Income tax | I20: =SUM(G13:G19) -> 48860.26193 | J20: J = C + F
C23: Combined Tax Rate and PILs | D23: Effective Ontario Tax Rate | G23: =IF(I10>0,I20/I10,0) -> 0.06700348881 | H23: K = J / A
D24: Federal tax rate (Maximum 15%) | G24: 0.15 | H24: L
D25: Combined tax rate | I25: =SUM(G23:G24) -> 0.2170034888 | J25: M = K + L
C28: Total Income Taxes | I28: =I10*I25 -> 158243.2123 | J28: N = A * M
C30: Investment Tax Credits | I30: =Sheet1!D184 -> 5000 | J30: O
C31: Miscellaneous Tax Credits | I31: =Sheet1!D185 -> 5000 | J31: P
C32: Total Tax Credits | I32: =SUM(I30:I31) -> 10000 | J32: Q = O + P
C34: Corporate PILs/Income Tax Provision for Historical Year | I34: =IF(I28-I32<0,0,I28-I32) -> 148243.2123 | J34: R = N - Q

Sheet I. Schedule 8 CCA Bridge Year
C7: Schedule 8 CCA - Bridge Year
C9: Class | D9: Class Description | E9: UCC Regulated Historical Year | F9: Additions | G9: Disposals (Negative) | H9: UCC Before 1/2 Yr Adjustment | I9: 1/2 Year Rule {1/2 Additions Less Disposals} | J9: Reduced UCC | K9: Rate % | L9: Bridge Year CCA | M9: UCC End of Bridge Year
C10: =IF(ISBLANK('C. Sch 8 Hist'!C12), "", 'C. Sch 8 Hist'!C12) -> 1 | D10: =IF(ISBLANK('C. Sch 8 Hist'!D12), "", 'C. Sch 8 Hist'!D12) -> Distribution System - post 1987 | E10: =IF(ISBLANK('C. Sch 8 Hist'!E12), "", 'C. Sch 8 Hist'!G12) -> 35563813.34 | F10: =Sheet1!E17 -> 0 | H10: =MAX((SUM(E10:G10)),0) -> 35563813.34 | I10: =IF((F10+G10)<=0, 0,(F10+G10)*0.5) -> 0 | J10: =+H10-I10 -> 35563813.34 | K10: 0.04 | L10: =IF(+J10<0,+J10,+J10*K10) -> 1422552.534 | M10: =MAX(0,+H10-L10) -> 34141260.81
C11: =IF(ISBLANK('C. Sch 8 Hist'!C13), "", 'C. Sch 8 Hist'!C13) -> 1 Enhanced | D11: =IF(ISBLANK('C. Sch 8 Hist'!D13), "", 'C. Sch 8 Hist'!D13) -> Non-residential Buildings Reg. 1100(1)(a.1) election | E11: =IF(ISBLANK('C. Sch 8 Hist'!E13), "", 'C. Sch 8 Hist'!G13) -> 0 | F11: =Sheet1!E18 -> 0 | H11: =MAX((SUM(E11:G11)),0) -> 0 | I11: =IF((F11+G11)<=0, 0,(F11+G11)*0.5) -> 0 | J11: =+H11-I11 -> 0 | K11: 0.06 | L11: 0 | M11: 0
C12: =IF(ISBLANK('C. Sch 8 Hist'!C14), "", 'C. Sch 8 Hist'!C14) -> 2 | D12: =IF(ISBLANK('C. Sch 8 Hist'!D14), "", 'C. Sch 8 Hist'!D14) -> Distribution System - pre 1988 | E12: =IF(ISBLANK('C. Sch 8 Hist'!E14), "", 'C. Sch 8 Hist'!G14) -> 0 | F12: =Sheet1!E19 -> 0 | H12: 0 | I12: 0 | J12: 0 | K12: 0.06 | L12: 0 | M12: 0
C13: =IF(ISBLANK('C. Sch 8 Hist'!C15), "", 'C. Sch 8 Hist'!C15) -> 8 | D13: =IF(ISBLANK('C. Sch 8 Hist'!D15), "", 'C. Sch 8 Hist'!D15) -> General Office/Stores Equip | E13: =IF(ISBLANK('C. Sch 8 Hist'!E15), "", 'C. Sch 8 Hist'!G15) -> 848881.4848 | F13: =Sheet1!E20 -> 185791.8518 | H13: 1034673.337 | I13: 92895.9259 | J13: 941777.4107 | K13: 0.2 | L13: 188355.4821 | M13: 846317.8545
C14: =IF(ISBLANK('C. Sch 8 Hist'!C16), "", 'C. Sch 8 Hist'!C16) -> 10 | D14: =IF(ISBLANK('C. Sch 8 Hist'!D16), "", 'C. Sch 8 Hist'!D16) -> Computer Hardware/ Vehicles | E14: =IF(ISBLANK('C. Sch 8 Hist'!E16), "", 'C. Sch 8 Hist'!G16) -> 1342231.562 | F14: =Sheet1!E21 -> 587404.5846 | H14: 1929636.147 | I14: 293702.2923 | J14: 1635933.854 | K14: 0.3 | L14: 490780.1563 | M14: 1438855.99
C15: =IF(ISBLANK('C. Sch 8 Hist'!C17), "", 'C. Sch 8 Hist'!C17) -> 10.1 | D15: =IF(ISBLANK('C. Sch 8 Hist'!D17), "", 'C. Sch 8 Hist'!D17) -> Certain Automobiles | E15: =IF(ISBLANK('C. Sch 8 Hist'!E17), "", 'C. Sch 8 Hist'!G17) -> 6428.3345 | F15: =Sheet1!E22 -> 0 | H15: 6428.3345 | I15: 0 | J15: 6428.3345 | K15: 0.3 | L15: 1928.50035 | M15: 4499.83415
C16: =IF(ISBLANK('C. Sch 8 Hist'!C18), "", 'C. Sch 8 Hist'!C18) -> 12 | D16: =IF(ISBLANK('C. Sch 8 Hist'!D18), "", 'C. Sch 8 Hist'!D18) -> Computer Software | E16: =IF(ISBLANK('C. Sch 8 Hist'!E18), "", 'C. Sch 8 Hist'!G18) -> 369782.4324 | F16: =Sheet1!E23 -> 445025.9459 | H16: 814808.3784 | I16: 222512.973 | J16: 592295.4054 | K16: 1 | L16: =IF(+J16<0,+J16,+J16*K16) -> 592295.4054 | M16: =MAX(0,+H16-L16) -> 222512.973
C17: =IF(ISBLANK('C. Sch 8 Hist'!C19), "", 'C. Sch 8 Hist'!C19) -> 13 1 | D17: =IF(ISBLANK('C. Sch 8 Hist'!D19), "", 'C. Sch 8 Hist'!D19) -> Lease # 1 | E17: =IF(ISBLANK('C. Sch 8 Hist'!E19), "", 'C. Sch 8 Hist'!G19) -> 698679.1575 | F17: =Sheet1!E24 -> 90000 | H17: 788679.1575 | I17: 45000 | J17: 743679.1575 | K17: 0.1 | L17: 74367.91575 | M17: 714311.2418
C18: =IF(ISBLANK('C. Sch 8 Hist'!C20), "", 'C. Sch 8 Hist'!C20) -> 13 2 | D18: =IF(ISBLANK('C. Sch 8 Hist'!D20), "", 'C. Sch 8 Hist'!D20) -> Lease #2 | E18: =IF(ISBLANK('C. Sch 8 Hist'!E20), "", 'C. Sch 8 Hist'!G20) -> 0 | F18: =Sheet1!E25 -> 0 | H18: 0 | I18: 0 | J18: 0 | L18: 0 | M18: 0
C19: =IF(ISBLANK('C. Sch 8 Hist'!C21), "", 'C. Sch 8 Hist'!C21) -> 13 3 | D19: =IF(ISBLANK('C. Sch 8 Hist'!D21), "", 'C. Sch 8 Hist'!D21) -> Lease # 3 | E19: =IF(ISBLANK('C. Sch 8 Hist'!E21), "", 'C. Sch 8 Hist'!G21) -> 0 | F19: =Sheet1!E26 -> 0 | H19: 0 | I19: 0 | J19: 0 | L19: 0 | M19: 0
C20: =IF(ISBLANK('C. Sch 8 Hist'!C22), "", 'C. Sch 8 Hist'!C22) -> 13 4 | D20: =IF(ISBLANK('C. Sch 8 Hist'!D22), "", 'C. Sch 8 Hist'!D22) -> Lease # 4 | E20: =IF(ISBLANK('C. Sch 8 Hist'!E22), "", 'C. Sch 8 Hist'!G22) -> 0 | F20: =Sheet1!E27 -> 0 | H20: 0 | I20: 0 | J20: 0 | L20: 0 | M20: 0
C21: =IF(ISBLANK('C. Sch 8 Hist'!C23), "", 'C. Sch 8 Hist'!C23) -> 14 | D21: =IF(ISBLANK('C. Sch 8 Hist'!D23), "", 'C. Sch 8 Hist'!D23) -> Franchise | E21: =IF(ISBLANK('C. Sch 8 Hist'!E23), "", 'C. Sch 8 Hist'!G23) -> 0 | F21: =Sheet1!E28 -> 0 | H21: 0 | I21: 0 | J21: 0 | L21: 0 | M21: 0
C22: =IF(ISBLANK('C. Sch 8 Hist'!C24), "", 'C. Sch 8 Hist'!C24) -> 17 | D22: =IF(ISBLANK('C. Sch 8 Hist'!D24), "", 'C. Sch 8 Hist'!D24) -> New Electrical Generating Equipment Acq'd after Feb 27/00 Other Than Bldgs | E22: =IF(ISBLANK('C. Sch 8 Hist'!E24), "", 'C. Sch 8 Hist'!G24) -> 0 | F22: =Sheet1!E29 -> 0 | H22: 0 | I22: 0 | J22: 0 | K22: 0.08 | L22: =IF(+J22<0,+J22,+J22*K22) -> 0 | M22: 0
C23: =IF(ISBLANK('C. Sch 8 Hist'!C25), "", 'C. Sch 8 Hist'!C25) -> 42 | D23: =IF(ISBLANK('C. Sch 8 Hist'!D25), "", 'C. Sch 8 Hist'!D25) -> Fibre Optic Cable | E23: =IF(ISBLANK('C. Sch 8 Hist'!E25), "", 'C. Sch 8 Hist'!G25) -> 20407.23948 | F23: =Sheet1!E30 -> 0 | H23: 20407.23948 | I23: 0 | J23: 20407.23948 | K23: 0.12 | L23: =IF(+J23<0,+J23,+J23*K23) -> 2448.868738 | M23: 17958.37074
C24: =IF(ISBLANK('C. Sch 8 Hist'!C26), "", 'C. Sch 8 Hist'!C26) -> 43.1 | D24: =IF(ISBLANK('C. Sch 8 Hist'!D26), "", 'C. Sch 8 Hist'!D26) -> Certain Energy-Efficient Electrical Generating Equipment | E24: =IF(ISBLANK('C. Sch 8 Hist'!E26), "", 'C. Sch 8 Hist'!G26) -> 0 | F24: =Sheet1!E31 -> 0 | H24: 0 | I24: 0 | J24: 0 | K24: 0.3 | L24: 0 | M24: 0
C25: =IF(ISBLANK('C. Sch 8 Hist'!C27), "", 'C. Sch 8 Hist'!C27) -> 43.2 | D25: =IF(ISBLANK('C. Sch 8 Hist'!D27), "", 'C. Sch 8 Hist'!D27) -> Certain Clean Energy Generation Equipment | E25: =IF(ISBLANK('C. Sch 8 Hist'!E27), "", 'C. Sch 8 Hist'!G27) -> 0 | F25: =Sheet1!E32 -> 0 | H25: 0 | I25: 0 | J25: 0 | K25: 0.5 | L25: 0 | M25: 0
C26: =IF(ISBLANK('C. Sch 8 Hist'!C28), "", 'C. Sch 8 Hist'!C28) -> 45 | D26: =IF(ISBLANK('C. Sch 8 Hist'!D28), "", 'C. Sch 8 Hist'!D28) -> Computers & Systems Software acq'd post Mar 22/04 | E26: =IF(ISBLANK('C. Sch 8 Hist'!E28), "", 'C. Sch 8 Hist'!G28) -> 1049.800878 | F26: =Sheet1!E33 -> 0 | H26: 1049.800878 | I26: 0 | J26: 1049.800878 | K26: 0.45 | L26: 472.410395 | M26: 577.3904828
C27: =IF(ISBLANK('C. Sch 8 Hist'!C29), "", 'C. Sch 8 Hist'!C29) -> 46 | D27: =IF(ISBLANK('C. Sch 8 Hist'!D29), "", 'C. Sch 8 Hist'!D29) -> Data Network Infrastructure Equipment (acq'd post Mar 22/04) | E27: =IF(ISBLANK('C. Sch 8 Hist'!E29), "", 'C. Sch 8 Hist'!G29) -> 0 | F27: =Sheet1!E34 -> 0 | H27: 0 | I27: 0 | J27: 0 | K27: 0.3 | L27: 0 | M27: 0
C28: =IF(ISBLANK('C. Sch 8 Hist'!C30), "", 'C. Sch 8 Hist'!C30) -> 47 | D28: =IF(ISBLANK('C. Sch 8 Hist'!D30), "", 'C. Sch 8 Hist'!D30) -> Distribution System - post February 2005 | E28: =IF(ISBLANK('C. Sch 8 Hist'!E30), "", 'C. Sch 8 Hist'!G30) -> 59272872.45 | F28: =Sheet1!E35 -> 10245444.28 | H28: 69518316.73 | I28: 5122722.142 | J28: 64395594.59 | K28: 0.08 | L28: 5151647.567 | M28: 64366669.17
C29: =IF(ISBLANK('C. Sch 8 Hist'!C31), "", 'C. Sch 8 Hist'!C31) -> 50 | D29: =IF(ISBLANK('C. Sch 8 Hist'!D31), "", 'C. Sch 8 Hist'!D31) -> Data Network Infrastructure Equipment - post Mar 2007 | E29: =IF(ISBLANK('C. Sch 8 Hist'!E31), "", 'C. Sch 8 Hist'!G31) -> 44289.11201 | F29: =Sheet1!E36 -> 0 | H29: 44289.11201 | I29: 0 | J29: 44289.11201 | K29: 0.55 | L29: 24359.01161 | M29: 19930.1004
C30: =IF(ISBLANK('C. Sch 8 Hist'!C32), "", 'C. Sch 8 Hist'!C32) -> 52 | D30: =IF(ISBLANK('C. Sch 8 Hist'!D32), "", 'C. Sch 8 Hist'!D32) -> Computer Hardware and system software | E30: =IF(ISBLANK('C. Sch 8 Hist'!E32), "", 'C. Sch 8 Hist'!G32) -> 0 | F30: =Sheet1!E37 -> 0 | H30: 0 | I30: 0 | J30: 0 | K30: 1 | L30: 0 | M30: 0
C31: =IF(ISBLANK('C. Sch 8 Hist'!C33), "", 'C. Sch 8 Hist'!C33) -> 95 | D31: =IF(ISBLANK('C. Sch 8 Hist'!D33), "", 'C. Sch 8 Hist'!D33) -> CWIP | E31: =IF(ISBLANK('C. Sch 8 Hist'!E33), "", 'C. Sch 8 Hist'!G33) -> 0 | F31: =Sheet1!E38 -> 0 | H31: 0 | I31: 0 | J31: 0 | L31: 0 | M31: 0
C32: =IF(ISBLANK('C. Sch 8 Hist'!C34), "", 'C. Sch 8 Hist'!C34) ->  | D32: =IF(ISBLANK('C. Sch 8 Hist'!D34), "", 'C. Sch 8 Hist'!D34) ->  | E32: =IF(ISBLANK('C. Sch 8 Hist'!E34), "", 'C. Sch 8 Hist'!G34) -> 0 | F32: =Sheet1!E39 -> 0 | H32: 0 | I32: 0 | J32: 0 | K32: 0.05 | L32: 0 | M32: 0
C33: =IF(ISBLANK('C. Sch 8 Hist'!C35), "", 'C. Sch 8 Hist'!C35) -> 45.1 | D33: =IF(ISBLANK('C. Sch 8 Hist'!D35), "", 'C. Sch 8 Hist'!D35) -> Computers-1921 | E33: =IF(ISBLANK('C. Sch 8 Hist'!E35), "", 'C. Sch 8 Hist'!G35) -> 328.4589234 | F33: =Sheet1!E40 -> 0 | H33: 328.4589234 | I33: 0 | J33: 328.4589234 | K33: 0.55 | L33: 180.6524079 | M33: 147.8065155
C34: =IF(ISBLANK('C. Sch 8 Hist'!C36), "", 'C. Sch 8 Hist'!C36) ->  | D34: =IF(ISBLANK('C. Sch 8 Hist'!D36), "", 'C. Sch 8 Hist'!D36) ->  | H34: =MAX((SUM(E34:G34)),0) -> 0 | I34: 0 | J34: =+H34-I34 -> 0 | L34: 0 | M34: 0
C35: =IF(ISBLANK('C. Sch 8 Hist'!C37), "", 'C. Sch 8 Hist'!C37) ->  | D35: =IF(ISBLANK('C. Sch 8 Hist'!D37), "", 'C. Sch 8 Hist'!D37) ->  | E35: =IF(ISBLANK('C. Sch 8 Hist'!E37), "", 'C. Sch 8 Hist'!G37) ->  | H35: =MAX((SUM(E35:G35)),0) -> 0 | I35: 0 | J35: =+H35-I35 -> 0 | L35: 0 | M35: 0
C36: =IF(ISBLANK('C. Sch 8 Hist'!C38), "", 'C. Sch 8 Hist'!C38) ->  | D36: =IF(ISBLANK('C. Sch 8 Hist'!D38), "", 'C. Sch 8 Hist'!D38) ->  | E36: =IF(ISBLANK('C. Sch 8 Hist'!E38), "", 'C. Sch 8 Hist'!G38) ->  | H36: =MAX((SUM(E36:G36)),0) -> 0 | I36: 0 | J36: =+H36-I36 -> 0 | L36: 0 | M36: 0
C37: =IF(ISBLANK('C. Sch 8 Hist'!C39), "", 'C. Sch 8 Hist'!C39) ->  | D37: =IF(ISBLANK('C. Sch 8 Hist'!D39), "", 'C. Sch 8 Hist'!D39) ->  | E37: =IF(ISBLANK('C. Sch 8 Hist'!E39), "", 'C. Sch 8 Hist'!G39) ->  | H37: 0 | I37: 0 | J37: 0 | L37: 0 | M37: 0
C38: =IF(ISBLANK('C. Sch 8 Hist'!C40), "", 'C. Sch 8 Hist'!C40) ->  | D38: =IF(ISBLANK('C. Sch 8 Hist'!D40), "", 'C. Sch 8 Hist'!D40) ->  | E38: =IF(ISBLANK('C. Sch 8 Hist'!E40), "", 'C. Sch 8 Hist'!G40) ->  | H38: 0 | I38: 0 | J38: 0 | L38: 0 | M38: 0
C39: =IF(ISBLANK('C. Sch 8 Hist'!C41), "", 'C. Sch 8 Hist'!C41) ->  | D39: =IF(ISBLANK('C. Sch 8 Hist'!D41), "", 'C. Sch 8 Hist'!D41) ->  | E39: =IF(ISBLANK('C. Sch 8 Hist'!E41), "", 'C. Sch 8 Hist'!G41) ->  | H39: 0 | I39: 0 | J39: 0 | L39: 0 | M39: 0
C40: =IF(ISBLANK('C. Sch 8 Hist'!C42), "", 'C. Sch 8 Hist'!C42) ->  | D40: =IF(ISBLANK('C. Sch 8 Hist'!D42), "", 'C. Sch 8 Hist'!D42) ->  | E40: =IF(ISBLANK('C. Sch 8 Hist'!E42), "", 'C. Sch 8 Hist'!G42) ->  | H40: 0 | I40: 0 | J40: 0 | L40: 0 | M40: 0
C41: =IF(ISBLANK('C. Sch 8 Hist'!C43), "", 'C. Sch 8 Hist'!C43) ->  | D41: =IF(ISBLANK('C. Sch 8 Hist'!D43), "", 'C. Sch 8 Hist'!D43) ->  | E41: =IF(ISBLANK('C. Sch 8 Hist'!E43), "", 'C. Sch 8 Hist'!G43) ->  | H41: 0 | I41: 0 | J41: 0 | L41: 0 | M41: 0
D42: TOTAL | E42: =SUM(E10:E41) -> 98168763.37 | F42: 11553666.67 | G42: 0 | H42: 109722430 | I42: 5776833.333 | J42: 103945596.7 | L42: =SUM(L10:L41) -> 7949388.504 | M42: =SUM(M10:M41) -> 101773041.5

Sheet J. Schedule 10 CEC Bridge Year
C6: Schedule 10 CEC - Bridge Year
C10: Cumulative Eligible Capital | K10: ='D. Schedule 10 CEC Hist'!K40 -> 0
C11: Additions
C12: Cost of Eligible Capital Property Acquired during Test Year
C14: Other Adjustments | G14: 0
C16: Subtotal | G16: =SUM(G12,G14) -> 0 | I16: x 3/4 = | J16: =3/4*G16 -> 0
C18: Non-taxable portion of a non-arm's length transferor's gain realized on the | G18: 0 | I18: x 1/2 = | J18: =IF((G18*0.5)<0, 0, G18*0.5) -> 0
C19: transfer of an ECP to the Corporation after Friday, December 20, 2002
J20: =IF((J16-J18)<0,0,J16-J18) -> 0 | K20: =J20 -> 0
C22: Amount transferred on amalgamation or wind-up of subsidiary | G22: 0 | K22: =G22 -> 0
F24: Subtotal | K24: =SUM(K10,K20,K22) -> 0
C26: Deductions
C28: Proceeds of sale (less outlays and expenses not otherwise deductible)
C29: from the disposition of all ECP during Test Year
C31: Other Adjustments | G31: 0
F33: Subtotal | G33: =SUM(G31,G28) -> 0 | I33: x 3/4 = | K33: =G33*3/4 -> 0
C36: Cumulative Eligible Capital Balance | K36: =K24-K33 -> 0
C38: Current Year Deduction | I38: =K36 -> 0 | J38: x 7% = | K38: =I38*0.07 -> 0
C40: Cumulative Eligible Capital - Closing Balance | K40: =K36-K38 -> 0

Sheet K. Sch 13 Tax Reserves Bridge
C7: Schedule 13 Tax Reserves - Bridge Year
C9: Continuity of Reserves
G10: Bridge Year Adjustments
C11: Description | D11: Historical Utility Only | E11: Eliminate Amounts Not Relevant for Bridge Year | F11: Adjusted Utility Balance | G11: Additions | H11: Disposals | I11: Balance for Bridge Year | J11: Change During the Year | K11: Disallowed Expenses
C13: Capital Gains Reserves ss.40(1) | D13: ='E. Sch 13 Tax Reserves Hist'!F15 -> 0 | F13: =SUM(D13:E13) -> 0 | I13: =F13+G13-H13 -> 0 | J13: =+I13-F13 -> 0
C14: Tax Reserves Not Deducted for accounting purposes
C15: Reserve for doubtful accounts ss. 20(1)(l) | D15: ='E. Sch 13 Tax Reserves Hist'!F17 -> 0 | F15: =SUM(D15:E15) -> 0 | I15: =F15+G15-H15 -> 0 | J15: =+I15-F15 -> 0
C16: Reserve for goods and services not delivered ss. 20(1)(m) | D16: ='E. Sch 13 Tax Reserves Hist'!F18 -> 0 | F16: 0 | I16: 0 | J16: 0
C17: Reserve for unpaid amounts ss. 20(1)(n) | D17: ='E. Sch 13 Tax Reserves Hist'!F19 -> 0 | F17: 0 | I17: 0 | J17: 0
C18: Debt & Share Issue Expenses ss. 20(1)(e) | D18: ='E. Sch 13 Tax Reserves Hist'!F20 -> 0 | F18: 0 | I18: 0 | J18: 0
C19: Other tax reserves | D19: ='E. Sch 13 Tax Reserves Hist'!F21 -> 0 | F19: 0 | I19: 0 | J19: 0
D20: ='E. Sch 13 Tax Reserves Hist'!F25 -> 0 | F20: 0 | I20: 0 | J20: 0
D21: ='E. Sch 13 Tax Reserves Hist'!F26 -> 0 | F21: 0 | I21: 0 | J21: 0
C22: Total | D22: =SUM(D15:D21) -> 0 | E22: 0 | F22: 0 | G22: 0 | H22: 0 | I22: 0 | J22: 0 | K22: 0
D23: 0
C24: Financial Statement Reserves (not deductible for Tax Purposes)
C25: General Reserve for Inventory Obsolescence (non-specific) | D25: ='E. Sch 13 Tax Reserves Hist'!F30 -> 0 | F25: =SUM(D25:E25) -> 0 | G25: =Sheet1!E58 -> 0 | I25: =F25+G25-H25 -> 0 | J25: =+I25-F25 -> 0
C26: General reserve for bad debts | D26: ='E. Sch 13 Tax Reserves Hist'!F31 -> 220000 | F26: 220000 | G26: =Sheet1!E59 -> 0 | I26: 220000 | J26: 0
C27: Accrued Employee Future Benefits: | D27: ='E. Sch 13 Tax Reserves Hist'!F32 -> 0 | F27: 0 | G27: =Sheet1!E60 -> 0 | I27: 0 | J27: 0
C28: - Medical and Life Insurance | D28: ='E. Sch 13 Tax Reserves Hist'!F33 -> 11648800.08 | F28: 11648800.08 | G28: =Sheet1!E61 -> 0 | I28: 11648800.08 | J28: 0
C29: -Short & Long-term Disability | D29: ='E. Sch 13 Tax Reserves Hist'!F34 -> 0 | F29: 0 | G29: =Sheet1!E62 -> 0 | I29: 0 | J29: 0
C30: -Accmulated Sick Leave | D30: ='E. Sch 13 Tax Reserves Hist'!F35 -> 0 | F30: 0 | G30: =Sheet1!E63 -> 0 | I30: 0 | J30: 0
C31: - Termination Cost | D31: ='E. Sch 13 Tax Reserves Hist'!F36 -> 0 | F31: 0 | G31: =Sheet1!E64 -> 0 | I31: 0 | J31: 0
C32: - Other Post-Employment Benefits | D32: ='E. Sch 13 Tax Reserves Hist'!F37 -> 0 | F32: 0 | G32: =Sheet1!E65 -> 0 | I32: 0 | J32: 0
C33: Provision for Environmental Costs | D33: ='E. Sch 13 Tax Reserves Hist'!F38 -> 0 | F33: 0 | G33: =Sheet1!E66 -> 0 | I33: 0 | J33: 0
C34: Restructuring Costs | D34: ='E. Sch 13 Tax Reserves Hist'!F39 -> 0 | F34: 0 | G34: =Sheet1!E67 -> 0 | I34: 0 | J34: 0
C35: Accrued Contingent Litigation Costs | D35: ='E. Sch 13 Tax Reserves Hist'!F40 -> 0 | F35: 0 | G35: =Sheet1!E68 -> 0 | I35: 0 | J35: 0
C36: Accrued Self-Insurance Costs | D36: ='E. Sch 13 Tax Reserves Hist'!F41 -> 0 | F36: 0 | G36: =Sheet1!E69 -> 0 | I36: 0 | J36: 0
C37: Other Contingent Liabilities | D37: ='E. Sch 13 Tax Reserves Hist'!F42 -> 0 | F37: 0 | G37: =Sheet1!E70 -> 0 | I37: 0 | J37: 0
C38: Bonuses Accrued and Not Paid Within 180 Days of Year-End ss. 78(4) | D38: ='E. Sch 13 Tax Reserves Hist'!F43 -> 0 | F38: 0 | G38: =Sheet1!E71 -> 0 | I38: 0 | J38: 0
C39: Unpaid Amounts to Related Person and Not Paid Within 3 Taxation Years ss. 78(1) | D39: ='E. Sch 13 Tax Reserves Hist'!F44 -> 0 | F39: 0 | G39: =Sheet1!E72 -> 0 | I39: 0 | J39: 0
C40: Other | D40: ='E. Sch 13 Tax Reserves Hist'!F45 -> 0 | F40: 0 | G40: =Sheet1!E73 -> 0 | I40: 0 | J40: 0
D41: ='E. Sch 13 Tax Reserves Hist'!F49 -> 0 | F41: =SUM(D41:E41) -> 0 | I41: 0 | J41: =+I41-F41 -> 0
D42: ='E. Sch 13 Tax Reserves Hist'!F50 -> 0 | F42: =SUM(D42:E42) -> 0 | I42: 0 | J42: =+I42-F42 -> 0
C43: Total | D43: =SUM(D25:D42) -> 11868800.08 | E43: =SUM(E25:E42) -> 0 | F43: 11868800.08 | G43: 0 | H43: 0 | I43: 11868800.08 | J43: 0 | K43: 0
D44: 0

Sheet L. Sch 7-1 Loss Cfwd Bridge
C7: Corporation Loss Continuity and Application
C9: Schedule 7-1 Loss Carry Forward - Bridge Year
C11: Non-Capital Loss Carry Forward Deduction | F11: Total
C12: Actual Historical | F12: ='F. Sch 7-1 Loss Cfwd Hist'!H14 -> 0
C13: Application of Loss Carry Forward to reduce taxable income in Bridge Year
C14: Other Adjustments Add (+) Deduct (-) | F14: =IF('M. Adj. Taxable Income Bridge'!E107<0, 'M. Adj. Taxable Income Bridge'!E107*-1, 0) -> 0
C15: Balance available for use in Test Year | F15: =F12+F13+F14 -> 0
C16: Amount to be used in Bridge Year | F16: =IF('M. Adj. Taxable Income Bridge'!E107<0,0,IF('M. Adj. Taxable Income Bridge'!E107>F15,F15,'M. Adj. Taxable Income Bridge'!E107)) -> 0
C17: Balance available for use post Bridge Year | F17: =F15-F16 -> 0
C19: Net Capital Loss Carry Forward Deduction | F19: Total
C20: Actual Historical | F20: ='F. Sch 7-1 Loss Cfwd Hist'!H17 -> 0
C21: Application of Loss Carry Forward to reduce taxable income in Bridge Year
C22: Other Adjustments Add (+) Deduct (-)
C23: Balance available for use in Test Year | F23: =F20-F21+F22 -> 0
C24: Amount to be used in Bridge Year
C25: Balance available for use post Bridge Year | F25: =F23-F24 -> 0

Sheet M. Adj. Taxable Income Bridge
B5: Adjusted Taxable Income - Bridge Year
D7: T2S1 line # | E7: Total for Regulated Utility
C8: Income before PILs/Taxes | D8: A | E8: =Sheet1!E80 -> 4198128.567
C10: Additions:
C11: Interest and penalties on taxes | D11: 103 | E11: =Sheet1!E82 -> 0
C12: Amortization of tangible assets | D12: 104 | E12: =Sheet1!E83 -> 4847338.381
C13: Amortization of intangible assets | D13: 106 | E13: =Sheet1!E84 -> 0
C14: Recapture of capital cost allowance from Schedule 8 | D14: 107 | E14: =Sheet1!E85 -> 0
C15: Gain on sale of eligible capital property from Schedule 10 | D15: 108 | E15: =Sheet1!E86 -> 0
C16: Income or loss for tax purposes- joint ventures or partnerships | D16: 109 | E16: =Sheet1!E87 -> 0
C17: Loss in equity of subsidiaries and affiliates | D17: 110 | E17: =Sheet1!E88 -> 0
C18: Loss on disposal of assets | D18: 111 | E18: =Sheet1!E89 -> 265096.4135
C19: Charitable donations | D19: 112 | E19: =Sheet1!E90 -> 9800
C20: Taxable Capital Gains | D20: 113 | E20: =Sheet1!E91 -> 0
C21: Political Donations | D21: 114 | E21: =Sheet1!E92 -> 0
C22: Deferred and prepaid expenses | D22: 116 | E22: =Sheet1!E93 -> 0
C23: Scientific research expenditures deducted on financial statements | D23: 118 | E23: =Sheet1!E94 -> 0
C24: Capitalized interest | D24: 119 | E24: =Sheet1!E95 -> 0
C25: Non-deductible club dues and fees | D25: 120 | E25: =Sheet1!E96 -> 13344
C26: Non-deductible meals and entertainment expense | D26: 121 | E26: =Sheet1!E97 -> 0
C27: Non-deductible automobile expenses | D27: 122 | E27: =Sheet1!E98 -> 0
C28: Non-deductible life insurance premiums | D28: 123 | E28: =Sheet1!E99 -> 0
C29: Non-deductible company pension plans | D29: 124 | E29: =Sheet1!E100 -> 0
C30: Tax reserves deducted in prior year | D30: 125 | E30: ='K. Sch 13 Tax Reserves Bridge'!F22 -> 0
C31: Reserves from financial statements- balance at end of year | D31: 126 | E31: ='K. Sch 13 Tax Reserves Bridge'!I43 -> 11868800.08
C32: Soft costs on construction and renovation of buildings | D32: 127 | E32: =Sheet1!E103 -> 0
C33: Book loss on joint ventures or partnerships | D33: 205 | E33: =Sheet1!E104 -> 0
C34: Capital items expensed | D34: 206 | E34: =Sheet1!E105 -> 0
C35: Debt issue expense | D35: 208 | E35: =Sheet1!E106 -> 0
C36: Development expenses claimed in current year | D36: 212 | E36: =Sheet1!E107 -> 0
C37: Financing fees deducted in books | D37: 216 | E37: =Sheet1!E108 -> 0
C38: Gain on settlement of debt | D38: 220 | E38: =Sheet1!E109 -> 0
C39: Non-deductible advertising | D39: 226 | E39: =Sheet1!E110 -> 0
C40: Non-deductible interest | D40: 227 | E40: =Sheet1!E111 -> 0
C41: Non-deductible legal and accounting fees | D41: 228 | E41: =Sheet1!E112 -> 0
C42: Recapture of SR&ED expenditures | D42: 231 | E42: =Sheet1!E113 -> 0
C43: Share issue expense | D43: 235 | E43: =Sheet1!E114 -> 0
C44: Write down of capital property | D44: 236 | E44: =Sheet1!E115 -> 0
C45: Amounts received in respect of qualifying environment trust per paragraphs 12(1)(z.1) and 12(1)(z.2) | D45: 237 | E45: =Sheet1!E116 -> 0
C46: Other Additions
C47: Interest Expensed on Capital Leases | D47: 290 | E47: =Sheet1!E118 -> 0
C48: Realized Income from Deferred Credit Accounts | D48: 291 | E48: =Sheet1!E119 -> 0
C49: Pensions | D49: 292 | E49: =Sheet1!E120 -> 0
C50: Non-deductible penalties | D50: 293 | E50: =Sheet1!E121 -> 0
C51: Other Additions (Apprenticeship Tax Credits) | D51: 294 | E51: =Sheet1!E122 -> 5000
D52: 295 | E52: =Sheet1!E123 -> 0
C53: ARO Accretion expense | E53: =Sheet1!E124 -> 0
C54: Capital Contributions Received (ITA 12(1)(x)) | E54: =Sheet1!E125 -> 0
C55: Lease Inducements Received (ITA 12(1)(x)) | E55: =Sheet1!E126 -> 0
C56: Deferred Revenue (ITA 12(1)(a)) | E56: =Sheet1!E127 -> 0
C57: Prior Year Investment Tax Credits received | E57: =Sheet1!E128 -> 0
C58: Inducements (ITA 12(1)(x)) | E58: =Sheet1!E129 -> 0
C59: Amortization of MIFRS PP&E Deferral Account | E59: =Sheet1!E130 -> 0
C68: Total Additions | E68: =SUM(E10:E67) -> 17009378.87
C69: Deductions:
C70: Gain on disposal of assets per financial statements | D70: 401 | E70: =Sheet1!E136 -> 0
C71: Dividends not taxable under section 83 | D71: 402 | E71: =Sheet1!E137 -> 0
C72: Capital cost allowance from Schedule 8 | D72: 403 | E72: ='I. Schedule 8 CCA Bridge Year'!L42 -> 7949388.504
C73: Terminal loss from Schedule 8 | D73: 404 | E73: =Sheet1!E139 -> 0
C74: Cumulative eligible capital deduction from Schedule 10 | D74: 405 | E74: ='J. Schedule 10 CEC Bridge Year'!K38 -> 0
C75: Allowable business investment loss | D75: 406 | E75: =Sheet1!E141 -> 0
C76: Deferred and prepaid expenses | D76: 409 | E76: =Sheet1!E142 -> 0
C77: Scientific research expenses claimed in year | D77: 411 | E77: =Sheet1!E143 -> 0
C78: Tax reserves claimed in current year | D78: 413 | E78: ='K. Sch 13 Tax Reserves Bridge'!I22 -> 0
C79: Reserves from financial statements - balance at beginning of year | D79: 414 | E79: ='K. Sch 13 Tax Reserves Bridge'!F43 -> 11868800.08
C80: Contributions to deferred income plans | D80: 416 | E80: =Sheet1!E146 -> 0
C81: Book income of joint venture or partnership | D81: 305 | E81: =Sheet1!E147 -> 0
C82: Equity in income from subsidiary or affiliates | D82: 306 | E82: =Sheet1!E148 -> 0
C83: Other deductions: (Please explain in detail the nature of the item) | E83: =Sheet1!E149 -> 0
E84: =Sheet1!E150 -> 0
C85: Interest capitalized for accounting deducted for tax | D85: 390 | E85: =Sheet1!E151 -> 73333.33333
C86: Capital Lease Payments | D86: 391 | E86: =Sheet1!E152 -> 0
C87: Non-taxable imputed interest income on deferral and variance accounts | D87: 392 | E87: =Sheet1!E153 -> 0
D88: 393 | E88: =Sheet1!E154 -> 0
D89: 394 | E89: =Sheet1!E155 -> 0
C90: ARO Payments - Deductible for Tax when Paid | E90: =Sheet1!E156 -> 0
C91: ITA 13(7.4) Election - Capital Contributions Received | E91: =Sheet1!E157 -> 0
C92: ITA 13(7.4) Election - Apply Lease Inducement to cost of Leaseholds | E92: =Sheet1!E158 -> 0
C93: Deferred Revenue - ITA 20(1)(m) reserve | E93: =Sheet1!E159 -> 0
C94: Principal portion of lease payments | E94: =Sheet1!E160 -> 0
C95: Lease Inducement Book Amortization credit to income | E95: =Sheet1!E161 -> 0
C96: Financing fees for tax ITA 20(1)(e) and (e.1) | E96: =Sheet1!E162 -> 0
C105: Total Deductions | E105: =SUM(E70:E104) -> 19891521.92
C107: Net Income for Tax Purposes | E107: =+E8+E68-E105 -> 1315985.524
C108: Charitable donations from Schedule 2 | D108: 311
C109: Taxable dividends deductible under section 112 or 113, from Schedule 3 (item 82) | D109: 320
C110: Non-capital losses of preceding taxation years from Schedule 4 | D110: 331 | E110: ='L. Sch 7-1 Loss Cfwd Bridge'!F16*-1 -> 0
C111: Net-capital losses of preceding taxation years from Schedule 4 (Please include explanation and calculation in Manager's summary) | D111: 332
C112: Limited partnership losses of preceding taxation years from Schedule 4 | D112: 335
C114: TAXABLE INCOME | E114: =SUM(E107:E112) -> 1315985.524

Sheet N. PILs,Tax Provision Bridge
B6: PILS Tax Provision - Bridge Year
I8: Wires Only
C10: Regulatory Taxable Income | I10: ='M. Adj. Taxable Income Bridge'!E114 -> 1315985.524 | J10: A
C12: Ontario Income Taxes
C13: Income tax payable | D13: Ontario Income Tax | E13: =IF(I10<=500000,'B. Tax Rates & Exemptions'!H31,'B. Tax Rates & Exemptions'!H21) -> 0.115 | F13: B | G13: =IF(I10>0,I10*E13,0) -> 151338.3353 | H13: C = A * B
C15: Small business credit | D15: Ontario Small Business Threshold | E15: =IF(I10>'B. Tax Rates & Exemptions'!G27,'B. Tax Rates & Exemptions'!G27,0) -> 500000 | F15: D
D16: Rate reduction | E16: =-('B. Tax Rates & Exemptions'!H21-'B. Tax Rates & Exemptions'!H31) -> -0.07 | F16: E | G16: =IF(I10>0,E15*E16,0) -> -35000 | H16: F = D * E
C20: Ontario Income tax | I20: =SUM(G13:G19) -> 116338.3353 | J20: J = C + F
C23: Combined Tax Rate and PILs | D23: Effective Ontario Tax Rate | G23: =IF(I10>0,I20/I10,0) -> 0.08840396277 | H23: K = J / A
D24: Federal tax rate (Maximum 15%) | G24: =IF(I10<=0,0,IF(I10<=500000,'B. Tax Rates & Exemptions'!H29,'B. Tax Rates & Exemptions'!H19)) -> 0.15 | H24: L
D25: Combined tax rate | I25: =SUM(G23:G24) -> 0.2384039628 | J25: M = K + L
C28: Total Income Taxes | I28: =I10*I25 -> 313736.164 | J28: N = A * M
C30: Investment Tax Credits | I30: =Sheet1!E184 -> 5000 | J30: O
C31: Miscellaneous Tax Credits | I31: =Sheet1!E185 -> 5000 | J31: P
C32: Total Tax Credits | I32: =SUM(I30:I31) -> 10000 | J32: Q = O + P
C34: Corporate PILs/Income Tax Provision for Bridge Year | I34: =IF(I28-I32<0,0,I28-I32) -> 303736.164 | J34: R = N - Q
C38: Note:
C39: 1. This is for the derivation of Bridge year PILs income tax expense and should not be used for Test year revenue requirement calculations.

Sheet O. Schedule 8 CCA Test Year
B7: Schedule 8 CCA - Test Year
C10: Class | D10: Class Description | E10: UCC Test Year Opening Balance | F10: Additions | G10: Disposals (Negative) | H10: UCC Before 1/2 Yr Adjustment | I10: 1/2 Year Rule {1/2 Additions Less Disposals} | J10: Reduced UCC | K10: Rate % | L10: Test Year CCA | M10: UCC End of Test Year
C11: =IF(ISBLANK('I. Schedule 8 CCA Bridge Year'!C10), "", 'I. Schedule 8 CCA Bridge Year'!C10) -> 1 | D11: =IF(ISBLANK('I. Schedule 8 CCA Bridge Year'!D10), "", 'I. Schedule 8 CCA Bridge Year'!D10) -> Distribution System - post 1987 | E11: =IF(ISBLANK('I. Schedule 8 CCA Bridge Year'!M10), "", 'I. Schedule 8 CCA Bridge Year'!M10) -> 34141260.81 | F11: =Sheet1!F17 -> 0 | H11: =MAX((SUM(E11:G11)),0) -> 34141260.81 | I11: =IF((F11+G11)<=0, 0,(F11+G11)*0.5) -> 0 | J11: =+H11-I11 -> 34141260.81 | K11: ='I. Schedule 8 CCA Bridge Year'!K10 -> 0.04 | L11: =IF(+J11<0,+J11,+J11*K11) -> 1365650.432 | M11: =MAX(0,+H11-L11) -> 32775610.37
C12: =IF(ISBLANK('I. Schedule 8 CCA Bridge Year'!C11), "", 'I. Schedule 8 CCA Bridge Year'!C11) -> 1 Enhanced | D12: =IF(ISBLANK('I. Schedule 8 CCA Bridge Year'!D11), "", 'I. Schedule 8 CCA Bridge Year'!D11) -> Non-residential Buildings Reg. 1100(1)(a.1) election | E12: =IF(ISBLANK('I. Schedule 8 CCA Bridge Year'!M11), "", 'I. Schedule 8 CCA Bridge Year'!M11) -> 0 | F12: =Sheet1!F18 -> 0 | H12: 0 | I12: =IF((F12+G12)<=0, 0,(F12+G12)*0.5) -> 0 | J12: 0 | K12: ='I. Schedule 8 CCA Bridge Year'!K11 -> 0.06 | L12: 0 | M12: 0
C13: =IF(ISBLANK('I. Schedule 8 CCA Bridge Year'!C12), "", 'I. Schedule 8 CCA Bridge Year'!C12) -> 2 | D13: =IF(ISBLANK('I. Schedule 8 CCA Bridge Year'!D12), "", 'I. Schedule 8 CCA Bridge Year'!D12) -> Distribution System - pre 1988 | E13: =IF(ISBLANK('I. Schedule 8 CCA Bridge Year'!M12), "", 'I. Schedule 8 CCA Bridge Year'!M12) -> 0 | F13: =Sheet1!F19 -> 0 | H13: 0 | I13: 0 | J13: 0 | K13: ='I. Schedule 8 CCA Bridge Year'!K12 -> 0.06 | L13: 0 | M13: 0
C14: =IF(ISBLANK('I. Schedule 8 CCA Bridge Year'!C13), "", 'I. Schedule 8 CCA Bridge Year'!C13) -> 8 | D14: =IF(ISBLANK('I. Schedule 8 CCA Bridge Year'!D13), "", 'I. Schedule 8 CCA Bridge Year'!D13) -> General Office/Stores Equip | E14: =IF(ISBLANK('I. Schedule 8 CCA Bridge Year'!M13), "", 'I. Schedule 8 CCA Bridge Year'!M13) -> 846317.8545 | F14: =Sheet1!F20 -> 188467.1562 | H14: 1034785.011 | I14: 94233.5781 | J14: 940551.4326 | K14: ='I. Schedule 8 CCA Bridge Year'!K13 -> 0.2 | L14: 188110.2865 | M14: 846674.7242
C15: =IF(ISBLANK('I. Schedule 8 CCA Bridge Year'!C14), "", 'I. Schedule 8 CCA Bridge Year'!C14) -> 10 | D15: =IF(ISBLANK('I. Schedule 8 CCA Bridge Year'!D14), "", 'I. Schedule 8 CCA Bridge Year'!D14) -> Computer Hardware/ Vehicles | E15: =IF(ISBLANK('I. Schedule 8 CCA Bridge Year'!M14), "", 'I. Schedule 8 CCA Bridge Year'!M14) -> 1438855.99 | F15: =Sheet1!F21 -> 538267.1921 | H15: 1977123.182 | I15: 269133.596 | J15: 1707989.586 | K15: ='I. Schedule 8 CCA Bridge Year'!K14 -> 0.3 | L15: 512396.8759 | M15: 1464726.306
C16: =IF(ISBLANK('I. Schedule 8 CCA Bridge Year'!C15), "", 'I. Schedule 8 CCA Bridge Year'!C15) -> 10.1 | D16: =IF(ISBLANK('I. Schedule 8 CCA Bridge Year'!D15), "", 'I. Schedule 8 CCA Bridge Year'!D15) -> Certain Automobiles | E16: =IF(ISBLANK('I. Schedule 8 CCA Bridge Year'!M15), "", 'I. Schedule 8 CCA Bridge Year'!M15) -> 4499.83415 | F16: =Sheet1!F22 -> 0 | H16: 4499.83415 | I16: 0 | J16: 4499.83415 | K16: ='I. Schedule 8 CCA Bridge Year'!K15 -> 0.3 | L16: 1349.950245 | M16: 3149.883905
C17: =IF(ISBLANK('I. Schedule 8 CCA Bridge Year'!C16), "", 'I. Schedule 8 CCA Bridge Year'!C16) -> 12 | D17: =IF(ISBLANK('I. Schedule 8 CCA Bridge Year'!D16), "", 'I. Schedule 8 CCA Bridge Year'!D16) -> Computer Software | E17: =IF(ISBLANK('I. Schedule 8 CCA Bridge Year'!M16), "", 'I. Schedule 8 CCA Bridge Year'!M16) -> 222512.973 | F17: =Sheet1!F23 -> 135847.2973 | H17: 358360.2702 | I17: 67923.64863 | J17: 290436.6216 | K17: ='I. Schedule 8 CCA Bridge Year'!K16 -> 1 | L17: 290436.6216 | M17: 67923.64863
C18: =IF(ISBLANK('I. Schedule 8 CCA Bridge Year'!C17), "", 'I. Schedule 8 CCA Bridge Year'!C17) -> 13 1 | D18: =IF(ISBLANK('I. Schedule 8 CCA Bridge Year'!D17), "", 'I. Schedule 8 CCA Bridge Year'!D17) -> Lease # 1 | E18: =IF(ISBLANK('I. Schedule 8 CCA Bridge Year'!M17), "", 'I. Schedule 8 CCA Bridge Year'!M17) -> 714311.2418 | F18: =Sheet1!F24 -> 45000 | H18: 759311.2418 | I18: 22500 | J18: 736811.2418 | K18: 0.1 | L18: 73681.12418 | M18: 685630.1176
C19: =IF(ISBLANK('I. Schedule 8 CCA Bridge Year'!C18), "", 'I. Schedule 8 CCA Bridge Year'!C18) -> 13 2 | D19: =IF(ISBLANK('I. Schedule 8 CCA Bridge Year'!D18), "", 'I. Schedule 8 CCA Bridge Year'!D18) -> Lease #2 | E19: =IF(ISBLANK('I. Schedule 8 CCA Bridge Year'!M18), "", 'I. Schedule 8 CCA Bridge Year'!M18) -> 0 | F19: =Sheet1!F25 -> 0 | H19: 0 | I19: 0 | J19: 0 | L19: 0 | M19: 0
C20: =IF(ISBLANK('I. Schedule 8 CCA Bridge Year'!C19), "", 'I. Schedule 8 CCA Bridge Year'!C19) -> 13 3 | D20: =IF(ISBLANK('I. Schedule 8 CCA Bridge Year'!D19), "", 'I. Schedule 8 CCA Bridge Year'!D19) -> Lease # 3 | E20: =IF(ISBLANK('I. Schedule 8 CCA Bridge Year'!M19), "", 'I. Schedule 8 CCA Bridge Year'!M19) -> 0 | F20: =Sheet1!F26 -> 0 | H20: 0 | I20: 0 | J20: 0 | L20: 0 | M20: 0
C21: =IF(ISBLANK('I. Schedule 8 CCA Bridge Year'!C20), "", 'I. Schedule 8 CCA Bridge Year'!C20) -> 13 4 | D21: =IF(ISBLANK('I. Schedule 8 CCA Bridge Year'!D20), "", 'I. Schedule 8 CCA Bridge Year'!D20) -> Lease # 4 | E21: =IF(ISBLANK('I. Schedule 8 CCA Bridge Year'!M20), "", 'I. Schedule 8 CCA Bridge Year'!M20) -> 0 | F21: =Sheet1!F27 -> 0 | H21: 0 | I21: 0 | J21: 0 | L21: 0 | M21: 0
C22: =IF(ISBLANK('I. Schedule 8 CCA Bridge Year'!C21), "", 'I. Schedule 8 CCA Bridge Year'!C21) -> 14 | D22: =IF(ISBLANK('I. Schedule 8 CCA Bridge Year'!D21), "", 'I. Schedule 8 CCA Bridge Year'!D21) -> Franchise | E22: =IF(ISBLANK('I. Schedule 8 CCA Bridge Year'!M21), "", 'I. Schedule 8 CCA Bridge Year'!M21) -> 0 | F22: =Sheet1!F28 -> 0 | H22: 0 | I22: 0 | J22: 0 | L22: 0 | M22: 0
C23: =IF(ISBLANK('I. Schedule 8 CCA Bridge Year'!C22), "", 'I. Schedule 8 CCA Bridge Year'!C22) -> 17 | D23: =IF(ISBLANK('I. Schedule 8 CCA Bridge Year'!D22), "", 'I. Schedule 8 CCA Bridge Year'!D22) -> New Electrical Generating Equipment Acq'd after Feb 27/00 Other Than Bldgs | E23: =IF(ISBLANK('I. Schedule 8 CCA Bridge Year'!M22), "", 'I. Schedule 8 CCA Bridge Year'!M22) -> 0 | F23: =Sheet1!F29 -> 0 | H23: 0 | I23: 0 | J23: 0 | K23: ='I. Schedule 8 CCA Bridge Year'!K22 -> 0.08 | L23: 0 | M23: 0
C24: =IF(ISBLANK('I. Schedule 8 CCA Bridge Year'!C23), "", 'I. Schedule 8 CCA Bridge Year'!C23) -> 42 | D24: =IF(ISBLANK('I. Schedule 8 CCA Bridge Year'!D23), "", 'I. Schedule 8 CCA Bridge Year'!D23) -> Fibre Optic Cable | E24: =IF(ISBLANK('I. Schedule 8 CCA Bridge Year'!M23), "", 'I. Schedule 8 CCA Bridge Year'!M23) -> 17958.37074 | F24: =Sheet1!F30 -> 0 | H24: 17958.37074 | I24: 0 | J24: 17958.37074 | K24: ='I. Schedule 8 CCA Bridge Year'!K23 -> 0.12 | L24: =IF(+J24<0,+J24,+J24*K24) -> 2155.004489 | M24: 15803.36626
C25: =IF(ISBLANK('I. Schedule 8 CCA Bridge Year'!C24), "", 'I. Schedule 8 CCA Bridge Year'!C24) -> 43.1 | D25: =IF(ISBLANK('I. Schedule 8 CCA Bridge Year'!D24), "", 'I. Schedule 8 CCA Bridge Year'!D24) -> Certain Energy-Efficient Electrical Generating Equipment | E25: =IF(ISBLANK('I. Schedule 8 CCA Bridge Year'!M24), "", 'I. Schedule 8 CCA Bridge Year'!M24) -> 0 | F25: =Sheet1!F31 -> 0 | H25: 0 | I25: 0 | J25: 0 | K25: ='I. Schedule 8 CCA Bridge Year'!K24 -> 0.3 | L25: 0 | M25: 0
C26: =IF(ISBLANK('I. Schedule 8 CCA Bridge Year'!C25), "", 'I. Schedule 8 CCA Bridge Year'!C25) -> 43.2 | D26: =IF(ISBLANK('I. Schedule 8 CCA Bridge Year'!D25), "", 'I. Schedule 8 CCA Bridge Year'!D25) -> Certain Clean Energy Generation Equipment | E26: =IF(ISBLANK('I. Schedule 8 CCA Bridge Year'!M25), "", 'I. Schedule 8 CCA Bridge Year'!M25) -> 0 | F26: =Sheet1!F32 -> 0 | H26: 0 | I26: 0 | J26: 0 | K26: ='I. Schedule 8 CCA Bridge Year'!K25 -> 0.5 | L26: 0 | M26: 0
C27: =IF(ISBLANK('I. Schedule 8 CCA Bridge Year'!C26), "", 'I. Schedule 8 CCA Bridge Year'!C26) -> 45 | D27: =IF(ISBLANK('I. Schedule 8 CCA Bridge Year'!D26), "", 'I. Schedule 8 CCA Bridge Year'!D26) -> Computers & Systems Software acq'd post Mar 22/04 | E27: =IF(ISBLANK('I. Schedule 8 CCA Bridge Year'!M26), "", 'I. Schedule 8 CCA Bridge Year'!M26) -> 577.3904828 | F27: =Sheet1!F33 -> 0 | H27: 577.3904828 | I27: 0 | J27: 577.3904828 | K27: ='I. Schedule 8 CCA Bridge Year'!K26 -> 0.45 | L27: 259.8257173 | M27: 317.5647655
C28: =IF(ISBLANK('I. Schedule 8 CCA Bridge Year'!C27), "", 'I. Schedule 8 CCA Bridge Year'!C27) -> 46 | D28: =IF(ISBLANK('I. Schedule 8 CCA Bridge Year'!D27), "", 'I. Schedule 8 CCA Bridge Year'!D27) -> Data Network Infrastructure Equipment (acq'd post Mar 22/04) | E28: =IF(ISBLANK('I. Schedule 8 CCA Bridge Year'!M27), "", 'I. Schedule 8 CCA Bridge Year'!M27) -> 0 | F28: =Sheet1!F34 -> 0 | H28: 0 | I28: 0 | J28: 0 | K28: ='I. Schedule 8 CCA Bridge Year'!K27 -> 0.3 | L28: 0 | M28: 0
C29: =IF(ISBLANK('I. Schedule 8 CCA Bridge Year'!C28), "", 'I. Schedule 8 CCA Bridge Year'!C28) -> 47 | D29: =IF(ISBLANK('I. Schedule 8 CCA Bridge Year'!D28), "", 'I. Schedule 8 CCA Bridge Year'!D28) -> Distribution System - post February 2005 | E29: =IF(ISBLANK('I. Schedule 8 CCA Bridge Year'!M28), "", 'I. Schedule 8 CCA Bridge Year'!M28) -> 64366669.17 | F29: =Sheet1!F35 -> 11391085.02 | H29: 75757754.19 | I29: 5695542.511 | J29: 70062211.68 | K29: ='I. Schedule 8 CCA Bridge Year'!K28 -> 0.08 | L29: 5604976.934 | M29: 70152777.25
C30: =IF(ISBLANK('I. Schedule 8 CCA Bridge Year'!C29), "", 'I. Schedule 8 CCA Bridge Year'!C29) -> 50 | D30: =IF(ISBLANK('I. Schedule 8 CCA Bridge Year'!D29), "", 'I. Schedule 8 CCA Bridge Year'!D29) -> Data Network Infrastructure Equipment - post Mar 2007 | E30: =IF(ISBLANK('I. Schedule 8 CCA Bridge Year'!M29), "", 'I. Schedule 8 CCA Bridge Year'!M29) -> 19930.1004 | F30: =Sheet1!F36 -> 0 | H30: 19930.1004 | I30: 0 | J30: 19930.1004 | K30: ='I. Schedule 8 CCA Bridge Year'!K29 -> 0.55 | L30: 10961.55522 | M30: 8968.545182
C31: =IF(ISBLANK('I. Schedule 8 CCA Bridge Year'!C30), "", 'I. Schedule 8 CCA Bridge Year'!C30) -> 52 | D31: =IF(ISBLANK('I. Schedule 8 CCA Bridge Year'!D30), "", 'I. Schedule 8 CCA Bridge Year'!D30) -> Computer Hardware and system software | E31: =IF(ISBLANK('I. Schedule 8 CCA Bridge Year'!M30), "", 'I. Schedule 8 CCA Bridge Year'!M30) -> 0 | F31: =Sheet1!F37 -> 0 | H31: 0 | I31: 0 | J31: 0 | K31: ='I. Schedule 8 CCA Bridge Year'!K30 -> 1 | L31: 0 | M31: 0
C32: =IF(ISBLANK('I. Schedule 8 CCA Bridge Year'!C31), "", 'I. Schedule 8 CCA Bridge Year'!C31) -> 95 | D32: =IF(ISBLANK('I. Schedule 8 CCA Bridge Year'!D31), "", 'I. Schedule 8 CCA Bridge Year'!D31) -> CWIP | E32: =IF(ISBLANK('I. Schedule 8 CCA Bridge Year'!M31), "", 'I. Schedule 8 CCA Bridge Year'!M31) -> 0 | F32: =Sheet1!F38 -> 0 | H32: 0 | I32: 0 | J32: 0 | K32: ='I. Schedule 8 CCA Bridge Year'!K31 -> 0 | L32: 0 | M32: 0
C33: =IF(ISBLANK('I. Schedule 8 CCA Bridge Year'!C32), "", 'I. Schedule 8 CCA Bridge Year'!C32) ->  | D33: =IF(ISBLANK('I. Schedule 8 CCA Bridge Year'!D32), "", 'I. Schedule 8 CCA Bridge Year'!D32) ->  | E33: =IF(ISBLANK('I. Schedule 8 CCA Bridge Year'!M32), "", 'I. Schedule 8 CCA Bridge Year'!M32) -> 0 | F33: =Sheet1!F39 -> 0 | H33: 0 | I33: 0 | J33: 0 | K33: ='I. Schedule 8 CCA Bridge Year'!K32 -> 0.05 | L33: 0 | M33: 0
C34: =IF(ISBLANK('I. Schedule 8 CCA Bridge Year'!C33), "", 'I. Schedule 8 CCA Bridge Year'!C33) -> 45.1 | D34: =IF(ISBLANK('I. Schedule 8 CCA Bridge Year'!D33), "", 'I. Schedule 8 CCA Bridge Year'!D33) -> Computers-1921 | E34: =IF(ISBLANK('I. Schedule 8 CCA Bridge Year'!M33), "", 'I. Schedule 8 CCA Bridge Year'!M33) -> 147.8065155 | F34: =Sheet1!F40 -> 0 | H34: 147.8065155 | I34: 0 | J34: 147.8065155 | K34: ='I. Schedule 8 CCA Bridge Year'!K33 -> 0.55 | L34: 81.29358355 | M34: 66.512932
C35: =IF(ISBLANK('I. Schedule 8 CCA Bridge Year'!C34), "", 'I. Schedule 8 CCA Bridge Year'!C34) ->  | D35: =IF(ISBLANK('I. Schedule 8 CCA Bridge Year'!D34), "", 'I. Schedule 8 CCA Bridge Year'!D34) ->  | E35: =IF(ISBLANK('I. Schedule 8 CCA Bridge Year'!M34), "", 'I. Schedule 8 CCA Bridge Year'!M34) -> 0 | H35: 0 | I35: 0 | J35: 0 | K35: ='I. Schedule 8 CCA Bridge Year'!K34 -> 0 | L35: 0 | M35: 0
C36: =IF(ISBLANK('I. Schedule 8 CCA Bridge Year'!C35), "", 'I. Schedule 8 CCA Bridge Year'!C35) ->  | D36: =IF(ISBLANK('I. Schedule 8 CCA Bridge Year'!D35), "", 'I. Schedule 8 CCA Bridge Year'!D35) ->  | E36: =IF(ISBLANK('I. Schedule 8 CCA Bridge Year'!M35), "", 'I. Schedule 8 CCA Bridge Year'!M35) -> 0 | H36: =MAX((SUM(E36:G36)),0) -> 0 | I36: 0 | J36: =+H36-I36 -> 0 | K36: ='I. Schedule 8 CCA Bridge Year'!K35 -> 0 | L36: =IF(+J36<0,+J36,+J36*K36) -> 0 | M36: 0
C37: =IF(ISBLANK('I. Schedule 8 CCA Bridge Year'!C36), "", 'I. Schedule 8 CCA Bridge Year'!C36) ->  | D37: =IF(ISBLANK('I. Schedule 8 CCA Bridge Year'!D36), "", 'I. Schedule 8 CCA Bridge Year'!D36) ->  | E37: =IF(ISBLANK('I. Schedule 8 CCA Bridge Year'!M36), "", 'I. Schedule 8 CCA Bridge Year'!M36) -> 0 | H37: =MAX((SUM(E37:G37)),0) -> 0 | I37: 0 | J37: =+H37-I37 -> 0 | K37: ='I. Schedule 8 CCA Bridge Year'!K36 -> 0 | L37: =IF(+J37<0,+J37,+J37*K37) -> 0 | M37: 0
C38: =IF(ISBLANK('I. Schedule 8 CCA Bridge Year'!C37), "", 'I. Schedule 8 CCA Bridge Year'!C37) ->  | D38: =IF(ISBLANK('I. Schedule 8 CCA Bridge Year'!D37), "", 'I. Schedule 8 CCA Bridge Year'!D37) ->  | E38: =IF(ISBLANK('I. Schedule 8 CCA Bridge Year'!M37), "", 'I. Schedule 8 CCA Bridge Year'!M37) -> 0 | H38: =MAX((SUM(E38:G38)),0) -> 0 | I38: 0 | J38: =+H38-I38 -> 0 | K38: ='I. Schedule 8 CCA Bridge Year'!K37 -> 0 | L38: =IF(+J38<0,+J38,+J38*K38) -> 0 | M38: 0
C39: =IF(ISBLANK('I. Schedule 8 CCA Bridge Year'!C38), "", 'I. Schedule 8 CCA Bridge Year'!C38) ->  | D39: =IF(ISBLANK('I. Schedule 8 CCA Bridge Year'!D38), "", 'I. Schedule 8 CCA Bridge Year'!D38) ->  | E39: =IF(ISBLANK('I. Schedule 8 CCA Bridge Year'!M38), "", 'I. Schedule 8 CCA Bridge Year'!M38) -> 0 | H39: 0 | I39: 0 | J39: 0 | K39: ='I. Schedule 8 CCA Bridge Year'!K38 -> 0 | L39: 0 | M39: 0
C40: =IF(ISBLANK('I. Schedule 8 CCA Bridge Year'!C39), "", 'I. Schedule 8 CCA Bridge Year'!C39) ->  | D40: =IF(ISBLANK('I. Schedule 8 CCA Bridge Year'!D39), "", 'I. Schedule 8 CCA Bridge Year'!D39) ->  | E40: =IF(ISBLANK('I. Schedule 8 CCA Bridge Year'!M39), "", 'I. Schedule 8 CCA Bridge Year'!M39) -> 0 | H40: 0 | I40: 0 | J40: 0 | K40: ='I. Schedule 8 CCA Bridge Year'!K39 -> 0 | L40: 0 | M40: 0
C41: =IF(ISBLANK('I. Schedule 8 CCA Bridge Year'!C40), "", 'I. Schedule 8 CCA Bridge Year'!C40) ->  | D41: =IF(ISBLANK('I. Schedule 8 CCA Bridge Year'!D40), "", 'I. Schedule 8 CCA Bridge Year'!D40) ->  | E41: =IF(ISBLANK('I. Schedule 8 CCA Bridge Year'!M40), "", 'I. Schedule 8 CCA Bridge Year'!M40) -> 0 | H41: 0 | I41: 0 | J41: 0 | K41: ='I. Schedule 8 CCA Bridge Year'!K40 -> 0 | L41: 0 | M41: 0
C42: =IF(ISBLANK('I. Schedule 8 CCA Bridge Year'!C41), "", 'I. Schedule 8 CCA Bridge Year'!C41) ->  | D42: =IF(ISBLANK('I. Schedule 8 CCA Bridge Year'!D41), "", 'I. Schedule 8 CCA Bridge Year'!D41) ->  | E42: =IF(ISBLANK('I. Schedule 8 CCA Bridge Year'!M41), "", 'I. Schedule 8 CCA Bridge Year'!M41) -> 0 | H42: 0 | I42: 0 | J42: 0 | K42: ='I. Schedule 8 CCA Bridge Year'!K41 -> 0 | L42: 0 | M42: 0
D43: TOTAL | E43: =SUM(E11:E42) -> 101773041.5 | F43: 12298666.67 | G43: 0 | H43: 114071708.2 | I43: 6149333.333 | J43: 107922374.9 | L43: =SUM(L11:L42) -> 8050059.904 | M43: =SUM(M11:M42) -> 106021648.3

Sheet P. Schedule 10 CEC Test Year
C5: Schedule 10 CEC - Test Year
C7: Cumulative Eligible Capital | K7: ='J. Schedule 10 CEC Bridge Year'!K40 -> 0
C9: Additions
C10: Cost of Eligible Capital Property Acquired during Test Year | G10: 0
C12: Other Adjustments | G12: 0
C14: Subtotal | G14: =SUM(G10,G12) -> 0 | I14: x 3/4 = | J14: =3/4*G14 -> 0
C16: Non-taxable portion of a non-arm's length transferor's gain realized on the | G16: 0 | I16: x 1/2 = | J16: =IF((G16*0.5)<0, 0, G16*0.5) -> 0
C17: transfer of an ECP to the Corporation after Friday, December 20, 2002
J18: =IF((J14-J16)<0,0,J14-J16) -> 0 | K18: =J18 -> 0
C20: Amount transferred on amalgamation or wind-up of subsidiary | G20: 0 | K20: =G20 -> 0
F22: Subtotal | K22: =SUM(K7,K18,K20) -> 0
C24: Deductions
C26: Proceeds of sale (less outlays and expenses not otherwise deductible) | G26: 0
C27: from the disposition of all ECP during Test Year
C29: Other Adjustments | G29: 0
F31: Subtotal | G31: =SUM(G29,G26) -> 0 | I31: x 3/4 = | K31: =G31*3/4 -> 0
C35: Cumulative Eligible Capital Balance | K35: =K22-K31 -> 0
C37: Current Year Deduction (Carry Forward to Tab "Test Year Taxable Income") | I37: =K35 -> 0 | J37: x 7% = | K37: =I37*0.07 -> 0
C39: Cumulative Eligible Capital - Closing Balance | K39: =K35-K37 -> 0

Sheet Q Sch 13 Tax Reserve Test Year
C7: Schedule 13 Tax Reserves - Test Year
C9: Continuity of Reserves
G10: Test Year Adjustments
C11: Description | D11: Bridge Year | E11: Eliminate Amounts Not Relevant for Bridge Year | F11: Adjusted Utility Balance | G11: Additions | H11: Disposals | I11: Balance for Test Year | J11: Change During the Year | K11: Disallowed Expenses
C13: Capital Gains Reserves ss.40(1) | D13: ='K. Sch 13 Tax Reserves Bridge'!I13 -> 0 | F13: =SUM(D13:E13) -> 0 | I13: =F13+G13-H13 -> 0 | J13: =+I13-F13 -> 0
C14: Tax Reserves Not Deducted for accounting purposes
C15: Reserve for doubtful accounts ss. 20(1)(l) | D15: ='K. Sch 13 Tax Reserves Bridge'!I15 -> 0 | F15: =SUM(D15:E15) -> 0 | I15: =F15+G15-H15 -> 0 | J15: =+I15-F15 -> 0
C16: Reserve for goods and services not delivered ss. 20(1)(m) | D16: ='K. Sch 13 Tax Reserves Bridge'!I16 -> 0 | F16: 0 | I16: 0 | J16: 0
C17: Reserve for unpaid amounts ss. 20(1)(n) | D17: ='K. Sch 13 Tax Reserves Bridge'!I17 -> 0 | F17: 0 | I17: 0 | J17: 0
C18: Debt & Share Issue Expenses ss. 20(1)(e) | D18: ='K. Sch 13 Tax Reserves Bridge'!I18 -> 0 | F18: 0 | I18: 0 | J18: 0
C19: Other tax reserves | D19: ='K. Sch 13 Tax Reserves Bridge'!I19 -> 0 | F19: 0 | I19: 0 | J19: 0
D20: ='K. Sch 13 Tax Reserves Bridge'!I20 -> 0 | F20: 0 | I20: 0 | J20: 0
D21: ='K. Sch 13 Tax Reserves Bridge'!I21 -> 0 | F21: 0 | I21: 0 | J21: 0
C22: Total | D22: =SUM(D15:D21) -> 0 | E22: 0 | F22: 0 | G22: 0 | H22: 0 | I22: 0 | J22: 0 | K22: 0
D23: 0
C24: Financial Statement Reserves (not deductible for Tax Purposes)
C25: General Reserve for Inventory Obsolescence (non-specific) | D25: ='K. Sch 13 Tax Reserves Bridge'!I25 -> 0 | F25: =SUM(D25:E25) -> 0 | G25: =Sheet1!F58 -> 0 | I25: =F25+G25-H25 -> 0 | J25: =+I25-F25 -> 0
C26: General reserve for bad debts | D26: ='K. Sch 13 Tax Reserves Bridge'!I26 -> 220000 | F26: 220000 | G26: =Sheet1!F59 -> 0 | I26: 220000 | J26: 0
C27: Accrued Employee Future Benefits: | D27: ='K. Sch 13 Tax Reserves Bridge'!I27 -> 0 | F27: 0 | G27: =Sheet1!F60 -> 0 | I27: 0 | J27: 0
C28: - Medical and Life Insurance | D28: ='K. Sch 13 Tax Reserves Bridge'!I28 -> 11648800.08 | F28: 11648800.08 | G28: =Sheet1!F61 -> 0 | I28: 11648800.08 | J28: 0
C29: -Short & Long-term Disability | D29: ='K. Sch 13 Tax Reserves Bridge'!I29 -> 0 | F29: 0 | G29: =Sheet1!F62 -> 0 | I29: 0 | J29: 0
C30: -Accmulated Sick Leave | D30: ='K. Sch 13 Tax Reserves Bridge'!I30 -> 0 | F30: 0 | G30: =Sheet1!F63 -> 0 | I30: 0 | J30: 0
C31: - Termination Cost | D31: ='K. Sch 13 Tax Reserves Bridge'!I31 -> 0 | F31: 0 | G31: =Sheet1!F64 -> 0 | I31: 0 | J31: 0
C32: - Other Post-Employment Benefits | D32: ='K. Sch 13 Tax Reserves Bridge'!I32 -> 0 | F32: 0 | G32: =Sheet1!F65 -> 0 | I32: 0 | J32: 0
C33: Provision for Environmental Costs | D33: ='K. Sch 13 Tax Reserves Bridge'!I33 -> 0 | F33: 0 | G33: =Sheet1!F66 -> 0 | I33: 0 | J33: 0
C34: Restructuring Costs | D34: ='K. Sch 13 Tax Reserves Bridge'!I34 -> 0 | F34: 0 | G34: =Sheet1!F67 -> 0 | I34: 0 | J34: 0
C35: Accrued Contingent Litigation Costs | D35: ='K. Sch 13 Tax Reserves Bridge'!I35 -> 0 | F35: 0 | G35: =Sheet1!F68 -> 0 | I35: 0 | J35: 0
C36: Accrued Self-Insurance Costs | D36: ='K. Sch 13 Tax Reserves Bridge'!I36 -> 0 | F36: 0 | G36: =Sheet1!F69 -> 0 | I36: 0 | J36: 0
C37: Other Contingent Liabilities | D37: ='K. Sch 13 Tax Reserves Bridge'!I37 -> 0 | F37: 0 | G37: =Sheet1!F70 -> 0 | I37: 0 | J37: 0
C38: Bonuses Accrued and Not Paid Within 180 Days of Year-End ss. 78(4) | D38: ='K. Sch 13 Tax Reserves Bridge'!I38 -> 0 | F38: 0 | G38: =Sheet1!F71 -> 0 | I38: 0 | J38: 0
C39: Unpaid Amounts to Related Person and Not Paid Within 3 Taxation Years ss. 78(1) | D39: ='K. Sch 13 Tax Reserves Bridge'!I39 -> 0 | F39: 0 | G39: =Sheet1!F72 -> 0 | I39: 0 | J39: 0
C40: Other | D40: ='K. Sch 13 Tax Reserves Bridge'!I40 -> 0 | F40: 0 | G40: =Sheet1!F73 -> 0 | I40: 0 | J40: 0
D41: ='K. Sch 13 Tax Reserves Bridge'!I41 -> 0 | F41: 0 | I41: 0 | J41: 0
D42: ='K. Sch 13 Tax Reserves Bridge'!I42 -> 0 | F42: 0 | I42: 0 | J42: 0
C43: Total | D43: =SUM(D25:D42) -> 11868800.08 | E43: 0 | F43: 11868800.08 | G43: 0 | H43: 0 | I43: 11868800.08 | J43: 0 | K43: 0
D44: 0

Sheet R. Sch 7-1 Loss Cfwd
C7: Schedule 7-1 Loss Carry Forward - Test Year
C9: Corporation Loss Continuity and Application
C11: Non-Capital Loss Carry Forward Deduction | F11: Total | G11: Non-Distribution Portion | H11: Utility Balance
C12: Actual/Estimated Bridge Year | F12: ='L. Sch 7-1 Loss Cfwd Bridge'!F17 -> 0 | H12: =F12-G12 -> 0
H13: =F13-G13 -> 0
C14: Other Adjustments Add (+) Deduct (-) | F14: =IF('S. Taxable Income Test Year'!E116<0,'S. Taxable Income Test Year'!E116*-1,0) -> 0 | H14: =F14-G14 -> 0
C15: Balance available for use in Test Year | F15: =F12+F13+F14 -> 0 | G15: =G12+G13+G14 -> 0 | H15: =H12+H13+H14 -> 0
C16: Amount to be used in Test Year | F16: =IF('S. Taxable Income Test Year'!E116<0,0,IF('S. Taxable Income Test Year'!E116>F15,F15,'S. Taxable Income Test Year'!E116)) -> 0 | H16: =F16-G16 -> 0
C17: Balance available for use post Test Year | F17: =F15-F16 -> 0 | G17: =G15-G16 -> 0 | H17: =H15-H16 -> 0
C19: Net Capital Loss Carry Forward Deduction | F19: Total | G19: Non-Distribution Portion | H19: Utility Balance
C20: Actual/Estimated Bridge Year | F20: ='L. Sch 7-1 Loss Cfwd Bridge'!F25 -> 0 | H20: =F20-G20 -> 0
H21: =F21-G21 -> 0
C22: Other Adjustments Add (+) Deduct (-) | H22: =F22-G22 -> 0
C23: Balance available for use in Test Year | F23: =F20-F21+F22 -> 0 | G23: =G20-G21+G22 -> 0 | H23: =H20-H21+H22 -> 0
C24: Amount to be used in Test Year | H24: =F24-G24 -> 0
C25: Balance available for use post Test Year | F25: =F23-F24 -> 0 | G25: =G23-G24 -> 0 | H25: =H23-H24 -> 0

Sheet S. Taxable Income Test Year
C10: Taxable Income - Test Year
E11: Test Year Taxable Income
C12: Net Income Before Taxes | E12: ='A. Data Input Sheet'!G18 -> 4459928.769
D14: T2 S1 line #
C15: Additions:
C16: Interest and penalties on taxes | D16: 103 | E16: =Sheet1!F82 -> 0
C17: Amortization of tangible assets 2-4 ADJUSTED ACCOUNTING DATA P489 | D17: 104 | E17: =Sheet1!F83 -> 5000972.05
C18: Amortization of intangible assets 2-4 ADJUSTED ACCOUNTING DATA P490 | D18: 106 | E18: =Sheet1!F84 -> 0
C19: Recapture of capital cost allowance from Schedule 8 | D19: 107 | E19: =Sheet1!F85 -> 0
C20: Gain on sale of eligible capital property from Schedule 10 | D20: 108 | E20: =Sheet1!F86 -> 0
C21: Income or loss for tax purposes- joint ventures or partnerships | D21: 109 | E21: =Sheet1!F87 -> 0
C22: Loss in equity of subsidiaries and affiliates | D22: 110 | E22: =Sheet1!F88 -> 0
C23: Loss on disposal of assets | D23: 111 | E23: =Sheet1!F89 -> 182213.8288
C24: Charitable donations | D24: 112 | E24: =Sheet1!F90 -> 9800
C25: Taxable Capital Gains | D25: 113 | E25: =Sheet1!F91 -> 0
C26: Political Donations | D26: 114 | E26: =Sheet1!F92 -> 0
C27: Deferred and prepaid expenses | D27: 116 | E27: =Sheet1!F93 -> 0
C28: Scientific research expenditures deducted on financial statements | D28: 118 | E28: =Sheet1!F94 -> 0
C29: Capitalized interest | D29: 119 | E29: =Sheet1!F95 -> 0
C30: Non-deductible club dues and fees | D30: 120 | E30: =Sheet1!F96 -> 13344
C31: Non-deductible meals and entertainment expense | D31: 121 | E31: =Sheet1!F97 -> 0
C32: Non-deductible automobile expenses | D32: 122 | E32: =Sheet1!F98 -> 0
C33: Non-deductible life insurance premiums | D33: 123 | E33: =Sheet1!F99 -> 0
C34: Non-deductible company pension plans | D34: 124 | E34: =Sheet1!F100 -> 0
C35: Tax reserves beginning of year | D35: 125 | E35: ='Q Sch 13 Tax Reserve Test Year'!F22 -> 0
C36: Reserves from financial statements- balance at end of year | D36: 126 | E36: ='Q Sch 13 Tax Reserve Test Year'!I43 -> 11868800.08
C37: Soft costs on construction and renovation of buildings | D37: 127 | E37: =Sheet1!F103 -> 0
C38: Book loss on joint ventures or partnerships | D38: 205 | E38: =Sheet1!F104 -> 0
C39: Capital items expensed | D39: 206 | E39: =Sheet1!F105 -> 0
C40: Debt issue expense | D40: 208 | E40: =Sheet1!F106 -> 0
C41: Development expenses claimed in current year | D41: 212 | E41: =Sheet1!F107 -> 0
C42: Financing fees deducted in books | D42: 216 | E42: =Sheet1!F108 -> 0
C43: Gain on settlement of debt | D43: 220 | E43: =Sheet1!F109 -> 0
C44: Non-deductible advertising | D44: 226 | E44: =Sheet1!F110 -> 0
C45: Non-deductible interest | D45: 227 | E45: =Sheet1!F111 -> 0
C46: Non-deductible legal and accounting fees | D46: 228 | E46: =Sheet1!F112 -> 0
C47: Recapture of SR&ED expenditures | D47: 231 | E47: =Sheet1!F113 -> 0
C48: Share issue expense | D48: 235 | E48: =Sheet1!F114 -> 0
C49: Write down of capital property | D49: 236 | E49: =Sheet1!F115 -> 0
C50: Amounts received in respect of qualifying environment trust per paragraphs 12(1)(z.1) and 12(1)(z.2) | D50: 237 | E50: =Sheet1!F116 -> 0
C51: Other Additions: (please explain in detail the nature of the item) | E51: =Sheet1!F117 -> 0
C52: Interest Expensed on Capital Leases | D52: 290 | E52: =Sheet1!F118 -> 0
C53: Realized Income from Deferred Credit Accounts | D53: 291 | E53: =Sheet1!F119 -> 0
C54: Pensions | D54: 292 | E54: =Sheet1!F120 -> 0
C55: Non-deductible penalties | D55: 293 | E55: =Sheet1!F121 -> 0
D56: 294 | E56: =Sheet1!F122 -> 5000
D57: 295 | E57: =Sheet1!F123 -> 0
D58: 296 | E58: =Sheet1!F124 -> 0
D59: 297 | E59: =Sheet1!F125 -> 0
C60: ARO Accretion expense | E60: =Sheet1!F124 -> 0
C61: Capital Contributions Received (ITA 12(1)(x)) | E61: =Sheet1!F125 -> 0
C62: Lease Inducements Received (ITA 12(1)(x)) | E62: =Sheet1!F126 -> 0
C63: Deferred Revenue (ITA 12(1)(a)) | E63: =Sheet1!F127 -> 0
C64: Prior Year Investment Tax Credits received | E64: =Sheet1!F128 -> 0
C65: Inducements (ITA 12(1)(x)) | E65: =Sheet1!F129 -> 0
C66: Amortization of MIFRS PP&E Deferral Account | E66: =Sheet1!F130 -> 0
C75: Total Additions | E75: =SUM(E16:E74) -> 17080129.96
C76: Deductions:
C77: Gain on disposal of assets per financial statements | D77: 401 | E77: =Sheet1!F136 -> 0
C78: Dividends not taxable under section 83 | D78: 402 | E78: =Sheet1!F137 -> 0
C79: Capital cost allowance from Schedule 8 | D79: 403 | E79: ='O. Schedule 8 CCA Test Year '!L43 -> 8050059.904
C80: Terminal loss from Schedule 8 | D80: 404 | E80: =Sheet1!F139 -> 0
C81: Cumulative eligible capital deduction from Schedule 10 CEC | D81: 405 | E81: ='P. Schedule 10 CEC Test Year'!K37 -> 0
C82: Allowable business investment loss | D82: 406 | E82: =Sheet1!F141 -> 0
C83: Deferred and prepaid expenses | D83: 409 | E83: =Sheet1!F142 -> 0
C84: Scientific research expenses claimed in year | D84: 411 | E84: =Sheet1!F143 -> 0
C85: Tax reserves end of year | D85: 413 | E85: ='Q Sch 13 Tax Reserve Test Year'!I22 -> 0
C86: Reserves from financial statements - balance at beginning of year | D86: 414 | E86: ='Q Sch 13 Tax Reserve Test Year'!F43 -> 11868800.08
C87: Contributions to deferred income plans | D87: 416 | E87: =Sheet1!F146 -> 0
C88: Book income of joint venture or partnership | D88: 305 | E88: =Sheet1!F147 -> 0
C89: Equity in income from subsidiary or affiliates | D89: 306 | E89: =Sheet1!F148 -> 0
C90: Other deductions: (Please explain in detail the nature of the item)
C91: Interest capitalized for accounting deducted for tax | D91: 390 | E91: =Sheet1!F151 -> 73333.33333
C92: Capital Lease Payments | D92: 391 | E92: =Sheet1!F152 -> 0
C93: Non-taxable imputed interest income on deferral and variance accounts | D93: 392 | E93: =Sheet1!F153 -> 0
D94: 393 | E94: =Sheet1!F154 -> 0
D95: 394 | E95: =Sheet1!F155 -> 0
D96: 395
D97: 396
D98: 397
C99: ARO Payments - Deductible for Tax when Paid | E99: =Sheet1!F156 -> 0
C100: ITA 13(7.4) Election - Capital Contributions Received | E100: =Sheet1!F157 -> 0
C101: ITA 13(7.4) Election - Apply Lease Inducement to cost of Leaseholds | E101: =Sheet1!F158 -> 0
C102: Deferred Revenue - ITA 20(1)(m) reserve | E102: =Sheet1!F159 -> 0
C103: Principal portion of lease payments | E103: =Sheet1!F160 -> 0
C104: Lease Inducement Book Amortization credit to income | E104: =Sheet1!F161 -> 0
C105: Financing fees for tax ITA 20(1)(e) and (e.1) | E105: =Sheet1!F162 -> 0
C114: Total Deductions | E114: =SUM(E77:E113) -> 19992193.32
C116: NET INCOME FOR TAX PURPOSES | E116: =SUM(E12,E75)-E114 -> 1547865.41
C118: Charitable donations | D118: 311 | E118: =Sheet1!F175 -> 0
C119: Taxable dividends received under section 112 or 113 | D119: 320 | E119: =Sheet1!F176 -> 0
C120: Non-capital losses of preceding taxation years from Schedule 7-1 | D120: 331 | E120: ='R. Sch 7-1 Loss Cfwd'!H16 -> 0
C121: Net-capital losses of preceding taxation years (Please show calculation) | D121: 332 | E121: =Sheet1!F178 -> 0
C122: Limited partnership losses of preceding taxation years from Schedule 4 | D122: 335 | E122: =Sheet1!F179 -> 0
C124: REGULATORY TAXABLE INCOME | E124: =IF(E116<0,E116,E116-SUM(E118:E123)) -> 1547865.41

Sheet T. PILs,Tax Provision
S1: Rate Base | T1: Federal Tax Rate
S2: 500000 | T2: 0.11
S3: 10000000 | T3: 0.11
S4: =S3+100000 -> 10100000 | T4: 0.11
S5: =S4+100000 -> 10200000 | T5: 0.11
B6: PILs Tax Provision - Test Year | S6: 10300000 | T6: 0.11
S7: 10400000 | T7: 0.11
I8: Wires Only | S8: 10500000 | T8: 0.11
S9: 10600000 | T9: 0.11
C10: Regulatory Taxable Income | I10: ='S. Taxable Income Test Year'!E124 -> 1547865.41 | J10: A | S10: 10700000 | T10: 0.11
S11: 10800000 | T11: 0.11
C12: Ontario Income Taxes | S12: 10900000 | T12: 0.11
C13: Income tax payable | D13: Ontario Income Tax | E13: =IF(I10<=500000,'B. Tax Rates & Exemptions'!I31,'B. Tax Rates & Exemptions'!I21) -> 0.115 | F13: B | G13: =IF(I10>0,I10*E13,0) -> 178004.5222 | H13: C = A * B | S13: 11000000 | T13: 0.11
S14: 11100000 | T14: 0.111
C15: Small business credit | D15: Ontario Small Business Threshold | E15: =IF(I10>'B. Tax Rates & Exemptions'!I27,'B. Tax Rates & Exemptions'!I27,0) -> 500000 | F15: D | S15: 11200000 | T15: =T14+0.13% -> 0.1123
D16: Rate reduction | E16: =-('B. Tax Rates & Exemptions'!I21-'B. Tax Rates & Exemptions'!I31) -> -0.07 | F16: E | G16: =IF(I10>0,E15*E16,0) -> -35000 | H16: F = D * E | S16: 11300000 | T16: =T15+0.13% -> 0.1136
S17: 11400000 | T17: =T16+0.13% -> 0.1149
S18: 11500000 | T18: =T17+0.13% -> 0.1162
S19: 11600000 | T19: =T18+0.12% -> 0.1174
C20: Ontario Income tax | I20: =SUM(G13:G19) -> 143004.5222 | J20: J = C + F | S20: 11700000 | T20: =T19+0.12% -> 0.1186
S21: 11800000 | T21: =T20+0.12% -> 0.1198
S22: 11900000 | T22: =T21+0.12% -> 0.121
C23: Combined Tax Rate and PILs | D23: Effective Ontario Tax Rate | G23: =IF(I10>0,I20/I10,0) -> 0.09238821491 | H23: K = J / A | S23: 12000000 | T23: =T22+0.112% -> 0.12212
D24: Federal tax rate (Maximum 15%) | G24: =VLOOKUP('A. Data Input Sheet'!G9,S:T,2,TRUE) -> 0.15 | H24: L | S24: 12100000 | T24: 0.12324
D25: Combined tax rate | I25: =SUM(G23:G24) -> 0.2423882149 | J25: M = K + L | S25: 12200000 | T25: 0.12436
S26: 12300000 | T26: 0.12548
S27: 12400000 | T27: 0.1266
C28: Total Income Taxes | I28: =I10*I25 -> 375184.3337 | J28: N = A * M | S28: 12500000 | T28: 0.12772
S29: 12600000 | T29: =T28+0.102% -> 0.12874
C30: Investment Tax Credits | I30: =Sheet1!F184 -> 5000 | J30: O | S30: 12700000 | T30: =T29+0.102% -> 0.12976
C31: Miscellaneous Tax Credits | I31: =Sheet1!F185 -> 5000 | J31: P | S31: 12800000 | T31: =T30+0.102% -> 0.13078
C32: Total Tax Credits | I32: =SUM(I30:I31) -> 10000 | J32: Q = O + P | S32: 12900000 | T32: =T31+0.102% -> 0.1318
S33: 13000000 | T33: =T32+0.102% -> 0.13282
C34: Corporate PILs/Income Tax Provision for Test Year | I34: =IF(I28-I32<0,0,I28-I32) -> 365184.3337 | J34: R = N - Q | S34: 13100000 | T34: =T33+0.096% -> 0.13378
S35: 13200000 | T35: =T34+0.096% -> 0.13474
C36: Corporate PILs/Income Tax Provision Gross Up 1 | G36: =(1-I25) -> 0.7576117851 | H36: S = 1 - M | I36: =I34/G36-I34 -> 116836.0637 | J36: T = R / S - R | S36: 13300000 | T36: =T35+0.096% -> 0.1357
S37: 13400000 | T37: =T36+0.096% -> 0.13666
S38: 13500000 | T38: =T37+0.096% -> 0.13762
C39: Income Tax (grossed-up) | I39: =I34+I36 -> 482020.3974 | J39: U = R + T | S39: 13600000 | T39: =T38+0.088% -> 0.1385
S40: 13700000 | T40: =T39+0.088% -> 0.13938
S41: 13800000 | T41: =T40+0.088% -> 0.14026
C42: Note: | S42: 13900000 | T42: =T41+0.088% -> 0.14114
C43: 1. This is for the derivation of revenue requirement and should not be used for sufficiency/deficiency calculations. | S43: 14000000 | T43: =T42+0.088% -> 0.14202
S44: 14100000 | T44: =T43+0.082% -> 0.14284
S45: 14200000 | T45: =T44+0.082% -> 0.14366
S46: 14300000 | T46: =T45+0.082% -> 0.14448
S47: 14400000 | T47: =T46+0.082% -> 0.1453
S48: 14500000 | T48: =T47+0.082% -> 0.14612
S49: 14600000 | T49: =T48+0.076% -> 0.14688
S50: 14700000 | T50: =T49+0.076% -> 0.14764
S51: 14800000 | T51: =T50+0.076% -> 0.1484
S52: 14900000 | T52: =T51+0.076% -> 0.14916
S53: 15000000 | T53: 0.15

Sheet Sheet1
F1: 2017 PILS MODEL
D2: Historic Year | E2: Bridge Year | F2: Test Year
D3: 2015 | E3: 2016 | F3: 2017
A4: A. Data Input Sheet
B5: Rate Base | F5: 119890558.3
B7: Return on Ratebase
B8: Deemed ShortTerm Debt % | F8: 0.04
B9: Deemed Long Term Debt % | F9: 0.56
B10: Deemed Equity % | F10: 0.4
B12: Short Term Interest Rate | F12: 0.0216
B13: Long Term Interest | F13: 0.04601273901
B14: Return on Equity (Regulatory Income) | F14: 0.093
A15: C. Sch 8 Hist, I. Schedule 8 CCA Bridge Year
B16: CAPITAL COST ALLOWANCE | D16: 2015 UCC End of Year per tax returns | E16: 2016 Additions | F16: 2017 Additions
A17: 1 | B17: Distribution System - post 1987 | D17: 35563813.34 | E17: 0 | F17: 0
A18: 1 Enhanced | B18: Non-residential Buildings Reg. 1100(1)(a.1) election | D18: 0 | E18: 0 | F18: 0
A19: 2 | B19: Distribution System - pre 1988 | D19: 0 | E19: 0 | F19: 0
A20: 8 | B20: General Office/Stores Equip | D20: 848881.4848 | E20: 185791.8518 | F20: 188467.1562
A21: 10 | B21: Computer Hardware/ Vehicles | D21: 1342231.562 | E21: 587404.5846 | F21: 538267.1921
A22: 10.1 | B22: Certain Automobiles | D22: 6428.3345 | E22: 0 | F22: 0
A23: 12 | B23: Computer Software | D23: 369782.4324 | E23: 445025.9459 | F23: 135847.2973
A24: 13 1 | B24: Lease # 1 | D24: 698679.1575 | E24: 90000 | F24: 45000
A25: 13 2 | B25: Lease #2 | D25: 0 | E25: 0 | F25: 0
A26: 13 3 | B26: Lease # 3 | D26: 0 | E26: 0 | F26: 0
A27: 13 4 | B27: Lease # 4 | D27: 0 | E27: 0 | F27: 0
A28: 14 | B28: Franchise | D28: 0 | E28: 0 | F28: 0
A29: 17 | B29: New Electrical Generating Equipment Acq'd after Feb 27/00 Other Than Bldgs | D29: 0 | E29: 0 | F29: 0
A30: 42 | B30: Fibre Optic Cable | D30: 20407.23948 | E30: 0 | F30: 0
A31: 43.1 | B31: Certain Energy-Efficient Electrical Generating Equipment | D31: 0 | E31: 0 | F31: 0
A32: 43.2 | B32: Certain Clean Energy Generation Equipment | D32: 0 | E32: 0 | F32: 0
A33: 45 | B33: Computers & Systems Software acq'd post Mar 22/04 | D33: 1049.800878 | E33: 0 | F33: 0
A34: 46 | B34: Data Network Infrastructure Equipment (acq'd post Mar 22/04) | D34: 0 | E34: 0 | F34: 0
A35: 47 | B35: Distribution System - post February 2005 | D35: 59272872.45 | E35: 10245444.28 | F35: 11391085.02
A36: 50 | B36: Data Network Infrastructure Equipment - post Mar 2007 | D36: 44289.11201 | E36: 0 | F36: 0
A37: 52 | B37: Computer Hardware and system software | D37: 0 | E37: 0 | F37: 0
A38: 95 | B38: CWIP | D38: 0 | E38: 0 | F38: 0
D39: 0 | E39: 0 | F39: 0
A40: 45.1 | B40: Computers-1921 | D40: 328.4589234 | E40: 0 | F40: 0
D42: 98168763.37 | E42: 11553666.67 | F42: 12298666.67
A44: E. Sch 13 Tax Reserves Hist, K. Sch 13 Tax Reserves Bridge
A45: Continuity of Reserves | D45: End of Year | E45: Change
B46: Capital Gains Reserves ss.40(1)
B47: Tax Reserves Not Deducted for accounting purposes
B48: Reserve for doubtful accounts ss. 20(1)(l)
B49: Reserve for goods and services not delivered ss. 20(1)(m)
B50: Reserve for unpaid amounts ss. 20(1)(n)
B51: Debt & Share Issue Expenses ss. 20(1)(e)
B52: Other tax reserves
B55: Total | D55: 0 | E55: 0 | F55: 0
B57: Financial Statement Reserves (not deductible for Tax Purposes)
B58: General Reserve for Inventory Obsolescence (non-specific)
B59: General reserve for bad debts | D59: 220000 | E59: 0 | F59: 0
B60: Accrued Employee Future Benefits:
B61: - Medical and Life Insurance | D61: 11648800.08 | E61: 0 | F61: 0
B62: -Short & Long-term Disability
B63: -Accmulated Sick Leave
B64: - Termination Cost
B65: - Other Post-Employment Benefits
B66: Provision for Environmental Costs
B67: Restructuring Costs
B68: Accrued Contingent Litigation Costs
B69: Accrued Self-Insurance Costs
B70: Other Contingent Liabilities
B71: Bonuses Accrued and Not Paid Within 180 Days of Year-End ss. 78(4)
B72: Unpaid Amounts to Related Person and Not Paid Within 3 Taxation Years ss. 78(1)
B73: Other
B76: Total | D76: 11868800.08 | E76: 0 | F76: 0
A78: G. Adj. Taxable Income Historic, M. Adj. Taxable Income Bridge, S. Taxable Income Test Year | F78: L
A79: Adjusted Taxable Income
B80: Income before PILs/Taxes | D80: 3905649.388 | E80: 4198128.567 | F80: 4459928.769
A81: T2S1 line # | B81: Additions:
A82: 103 | B82: Interest and penalties on taxes | D82: 0 | E82: 0 | F82: 0
A83: 104 | B83: Amortization of tangible assets | D83: 4491587.548 | E83: 4847338.381 | F83: 5000972.05
A84: 106 | B84: Amortization of intangible assets | D84: 0 | E84: 0 | F84: 0
A85: 107 | B85: Recapture of capital cost allowance from Schedule 8 | D85: 0 | E85: 0 | F85: 0
A86: 108 | B86: Gain on sale of eligible capital property from Schedule 10 | D86: 0 | E86: 0 | F86: 0
A87: 109 | B87: Income or loss for tax purposes- joint ventures or partnerships | D87: 0 | E87: 0 | F87: 0
A88: 110 | B88: Loss in equity of subsidiaries and affiliates | D88: 0 | E88: 0 | F88: 0
A89: 111 | B89: Loss on disposal of assets | D89: 396446.4819 | E89: 265096.4135 | F89: 182213.8288
A90: 112 | B90: Charitable donations | D90: 9800 | E90: 9800 | F90: 9800
A91: 113 | B91: Taxable Capital Gains | D91: 0 | E91: 0 | F91: 0
A92: 114 | B92: Political Donations | D92: 0 | E92: 0 | F92: 0
A93: 116 | B93: Deferred and prepaid expenses | D93: 0 | E93: 0 | F93: 0
A94: 118 | B94: Scientific research expenditures deducted on financial statements | D94: 0 | E94: 0 | F94: 0
A95: 119 | B95: Capitalized interest | D95: 0 | E95: 0 | F95: 0
A96: 120 | B96: Non-deductible club dues and fees | D96: 13344 | E96: 13344 | F96: 13344
A97: 121 | B97: Non-deductible meals and entertainment expense | D97: 0 | E97: 0 | F97: 0
A98: 122 | B98: Non-deductible automobile expenses | D98: 0 | E98: 0 | F98: 0
A99: 123 | B99: Non-deductible life insurance premiums | D99: 0 | E99: 0 | F99: 0
A100: 124 | B100: Non-deductible company pension plans | D100: 0 | E100: 0 | F100: 0
A101: 125 | B101: Tax reserves deducted in prior year | D101: 0 | E101: 0 | F101: 0
A102: 126 | B102: Reserves from financial statements- balance at end of year | D102: 11868800.08 | E102: 47475200.32 | F102: 47475200.32
A103: 127 | B103: Soft costs on construction and renovation of buildings | D103: 0 | E103: 0 | F103: 0
A104: 205 | B104: Book loss on joint ventures or partnerships | D104: 0 | E104: 0 | F104: 0
A105: 206 | B105: Capital items expensed | D105: 0 | E105: 0 | F105: 0
A106: 208 | B106: Debt issue expense | D106: 0 | E106: 0 | F106: 0
A107: 212 | B107: Development expenses claimed in current year | D107: 0 | E107: 0 | F107: 0
A108: 216 | B108: Financing fees deducted in books | D108: 0 | E108: 0 | F108: 0
A109: 220 | B109: Gain on settlement of debt | D109: 0 | E109: 0 | F109: 0
A110: 226 | B110: Non-deductible advertising | D110: 0 | E110: 0 | F110: 0
A111: 227 | B111: Non-deductible interest | D111: 0 | E111: 0 | F111: 0
A112: 228 | B112: Non-deductible legal and accounting fees | D112: 0 | E112: 0 | F112: 0
A113: 231 | B113: Recapture of SR&ED expenditures | D113: 0 | E113: 0 | F113: 0
A114: 235 | B114: Share issue expense | D114: 0 | E114: 0 | F114: 0
A115: 236 | B115: Write down of capital property | D115: 0 | E115: 0 | F115: 0
A116: 237 | B116: Amounts received in respect of qualifying environment trust per paragraphs 12(1)(z.1) and 12(1)(z.2) | D116: 0 | E116: 0 | F116: 0
B117: Other Additions | D117: 0 | E117: 0 | F117: 0
A118: 290 | B118: Interest Expensed on Capital Leases | D118: 0 | E118: 0 | F118: 0
A119: 291 | B119: Realized Income from Deferred Credit Accounts | D119: 0 | E119: 0 | F119: 0
A120: 292 | B120: Pensions | D120: 0 | E120: 0 | F120: 0
A121: 293 | B121: Non-deductible penalties | D121: 0 | E121: 0 | F121: 0
A122: 294 | B122: Other Additions (Apprenticeship Tax Credits) | D122: 5000 | E122: 5000 | F122: 5000
A123: 295 | D123: 0 | E123: 0 | F123: 0
B124: ARO Accretion expense | D124: 0 | E124: 0 | F124: 0
B125: Capital Contributions Received (ITA 12(1)(x)) | D125: 0 | E125: 0 | F125: 0
B126: Lease Inducements Received (ITA 12(1)(x)) | D126: 0 | E126: 0 | F126: 0
B127: Deferred Revenue (ITA 12(1)(a)) | D127: 0 | E127: 0 | F127: 0
B128: Prior Year Investment Tax Credits received | D128: 0 | E128: 0 | F128: 0
B129: Inducements (ITA 12(1)(x)) | D129: 0 | E129: 0 | F129: 0
B130: Amortization of MIFRS PP&E Deferral Account | D130: -595125 | E130: 0 | F130: 0
D131: 0 | E131: 0 | F131: 0
D132: 0 | E132: 0 | F132: 0
B133: Total Additions | D133: 16189853.11 | E133: 52615779.11 | F133: 52686530.2
B135: Deductions:
A136: 401 | B136: Gain on disposal of assets per financial statements | D136: 0 | E136: 0 | F136: 0
A137: 402 | B137: Dividends not taxable under section 83 | D137: 0 | E137: 0 | F137: 0
A138: 403 | B138: Capital cost allowance from Schedule 8 | D138: 7424149.415 | E138: 7949388.504 | F138: 8050059.904
A139: 404 | B139: Terminal loss from Schedule 8 | D139: 0 | E139: 0 | F139: 0
A140: 405 | B140: Cumulative eligible capital deduction from Schedule 10 | D140: 0 | E140: 0 | F140: 0
A141: 406 | B141: Allowable business investment loss | D141: 0 | E141: 0 | F141: 0
A142: 409 | B142: Deferred and prepaid expenses | D142: 0 | E142: 0 | F142: 0
A143: 411 | B143: Scientific research expenses claimed in year | D143: 0 | E143: 0 | F143: 0
A144: 413 | B144: Tax reserves claimed in current year | D144: 11868800.08 | E144: 47475200.32 | F144: 47475200.32
A145: 414 | B145: Reserves from financial statements - balance at beginning of year | D145: 0 | E145: 0 | F145: 0
A146: 416 | B146: Contributions to deferred income plans | D146: 0 | E146: 0 | F146: 0
A147: 305 | B147: Book income of joint venture or partnership | D147: 0 | E147: 0 | F147: 0
A148: 306 | B148: Equity in income from subsidiary or affiliates | D148: 0 | E148: 0 | F148: 0
B149: Other deductions: (Please explain in detail the nature of the item) | D149: 0 | E149: 0 | F149: 0
D150: 0 | E150: 0 | F150: 0
A151: 390 | B151: Interest capitalized for accounting deducted for tax | D151: 73333.33333 | E151: 73333.33333 | F151: 73333.33333
A152: 391 | B152: Capital Lease Payments | D152: 0 | E152: 0 | F152: 0
A153: 392 | B153: Non-taxable imputed interest income on deferral and variance accounts | D153: 0 | E153: 0 | F153: 0
A154: 393 | B154: Deferred Revenue Capital Contributions Amortization | D154: 0 | E154: 0 | F154: 0
A155: 394 | B155: Depreciation previously added back to income | D155: 0 | E155: 0 | F155: 0
B156: ARO Payments - Deductible for Tax when Paid
B157: ITA 13(7.4) Election - Capital Contributions Received
B158: ITA 13(7.4) Election - Apply Lease Inducement to cost of Leaseholds
B159: Deferred Revenue - ITA 20(1)(m) reserve
B160: Principal portion of lease payments
B161: Lease Inducement Book Amortization credit to income
B162: Financing fees for tax ITA 20(1)(e) and (e.1)
B171: Total Deductions | D171: 19366282.83 | E171: 55497922.16 | F171: 55598593.56
B173: Net Income for Tax Purposes | D173: 729219.6689 | E173: 1315985.524 | F173: 1547865.41
A175: 311 | B175: Charitable donations from Schedule 2 | C175: 311 | D175: 0 | E175: 0 | F175: 0
A176: 320 | B176: Taxable dividends deductible under section 112 or 113, from Schedule 3 (item 82) | C176: 320 | D176: 0 | E176: 0 | F176: 0
A177: 331 | B177: Non-capital losses of preceding taxation years from Schedule 4 | C177: 331 | D177: 0 | E177: 0 | F177: 0
A178: 332 | B178: Net-capital losses of preceding taxation years from Schedule 4 (Please include explanation and calculation in Manager's summary) | C178: 332 | D178: 0 | E178: 0 | F178: 0
A179: 335 | B179: Limited partnership losses of preceding taxation years from Schedule 4 | C179: 335 | D179: 0 | E179: 0 | F179: 0
B181: TAXABLE INCOME | D181: 729219.6689 | E181: 1315985.524 | F181: 1547865.41
A183: H. PILs,Tax Provision Historic
B184: Investment Tax Credits | D184: 5000 | E184: 5000 | F184: 5000
B185: Miscellaneous Tax Credits | D185: 5000 | E185: 5000 | F185: 5000
B186: Total Tax Credits | D186: 10000 | E186: 10000 | F186: 10000
